Cogmind - Beta 11.1 @@@ ROGUE MODE // 2022.05.09 @ 22:18:37 Player: Cracklepappy Result: Destroyed by H-88 Terminator with KE Penetrator Performance ------------- Evolutions (9) 4500 Regions Visited (32) 6400 Robots Destroyed (791) 3955 Value Destroyed (36948) 36948 Prototype IDs (49) 980 Alien Tech Used (0) 0 Bonus (16788) 16788 TOTAL SCORE: 69571 Bonus ------- Triggered High Security 500 High Alert Combat Kills 9886 Follower Combat Kills 2723 Entered Garrisons 800 Used RIF Installer 2000 Network Hubs Disabled 400 Triggered Deep Caves Wall 500 Exposed GOLEM Chamber 500 Built Enhanced Grunts 300 Friendly Fire -821 Cogmind --------- Core Integrity 0/1600 Matter 104/300 Energy 100/100 System Corruption 12% Temperature Cool (0) Movement Core (150) Ox2 Location -1/Access Parts ------- > --- POWER (4) -------- Improved Fusion Compressor > --- PROPULSION (4) --- (None) > --- UTILITY (14) ----- (None) > --- WEAPON (3) ------- (None) > --- INVENTORY (5) ---- Centrium Leg Hacking Suite Tesla Rifle Enhanced Nova Cannon Peak State ------------ > --- POWER ------------ Assembled Flux Generator Quantum Reactor Quantum Reactor > --- PROPULSION ------- Centrium Leg Centrium Leg Centrium Leg Centrium Leg > --- UTILITY ---------- Assembled Nanovents Assembled Nanovents Assembled Nanovents Huge Storage Unit Assembled Biocell Array Advanced Visual Processing Unit Advanced Signal Interpreter Experimental Targeting Computer Assembled Alloy Armor Experimental EM Disruption Field GOLEM Unit > --- WEAPON ----------- Assembled Focal Cannon Assembled Focal Cannon Assembled Focal Cannon > --- INVENTORY -------- Antimatter Reactor Quantum Reactor Centrium Leg Centrium Leg Centrium Leg Energy Well Layered Heavy Armor Plating Graphene Brace Hacking Suite Advanced System Shield Enhanced Quantum Rifle Compact HERF Cannon Compact HERF Cannon EMDS Enhanced Nova Cannon Enhanced Nova Cannon Tri-rail Accelerator Tri-rail Accelerator Fusion Bomb Launcher Fusion Bomb Launcher Advanced Remote Datajack [Rating: 202] Favorites ----------- Power Assembled Flux Generator Engine Makeshift Power Source Power Core Neutrino Core Reactor Assembled Flux Generator Propulsion Assembled Alloy Leg Treads Light Treads Leg Assembled Alloy Leg Wheel Wheel Flight Unit Improved Flight Unit Utility Huge Storage Unit Device GOLEM Unit Storage Huge Storage Unit Processor Improved Targeting Computer Hackware Relay Coupler [NC] Protection Assembled Alloy Armor Weapon Assembled Focal Cannon Energy Gun Enhanced Quantum Rifle Energy Cannon Assembled Focal Cannon Ballistic Gun Improved Assault Rifle Ballistic Cannon Tri-rail Accelerator Launcher Grenade Launcher Special Weapon Improved Remote Datajack Impact Weapon Power Maul Piercing Weapon CR-A16's Behemoth Slayer Special Melee Weapon Improved Datajack Build | -11 -10 -10 -9 -9 -9 -9 -7 -7 -7 -7 -6 -6 -6 -6 -6 -6 -6 -5 -5 -5 -4 -4 -4 -4 -4 -4 -4 -3 -3 -3 -2 -1 ------- Run | Scr Mat Min Mat Sto Gar Rec Fac Gar Fac Gar Fac Was Fac Low Low Zio Dee Pro Fac Gar Fac Was Fac Ext Cet Arc Hub Res Arm Lab Res Acc Slots Evolved 18 | . . . 2 . . . 4 . . . 2 . . . . . . . 2 . 2 . . . . . . 2 . . 2 2 Power 3 | . . . . . . . . . . . 1 . . . . . . . . . 2 . . . . . . . . . . . Propulsion 2 | . . . 1 . . . . . . . . . . . . . . . . . . . . . . . . 1 . . . . Utility 12 | . . . 1 . . . 4 . . . 1 . . . . . . . 1 . . . . . . . . 1 . . 2 2 Weapon 1 | . . . . . . . . . . . . . . . . . . . 1 . . . . . . . . . . . . . Parts Attached 759 | 7 15 4 47 43 2 1 63 23 18 17 11 14 32 15 13 53 35 5 35 29 18 14 11 16 3 2 10 50 22 5 90 36 Power 78 | 1 4 . 2 2 . . 1 1 2 . 2 2 . 2 1 8 2 . . . 4 4 3 4 1 . . 12 2 1 13 4 Engine 25 | 1 4 . 2 2 . . 1 1 1 . 1 . . 2 1 8 1 . . . . . . . . . . . . . . . Core 11 | . . . . . . . . . 1 . 1 . . . . . . . . . 2 . . 4 1 . . 1 . . . 1 Reactor 42 | . . . . . . . . . . . . 2 . . . . 1 . . . 2 4 3 . . . . 11 2 1 13 3 Propulsion 106 | 2 3 3 18 13 . . 14 2 . 3 . 1 1 3 1 1 2 . 4 2 4 3 . 2 1 . . 7 4 . 8 4 Treads 80 | 2 3 2 17 13 . . 14 . . 2 . 1 1 3 . 1 2 . 3 2 4 3 . 2 1 . . 4 . . . . Leg 14 | . . . . . . . . . . . . . . . . . . . 1 . . . . . . . . 3 4 . 6 . Wheel 11 | . . 1 . . . . . 2 . 1 . . . . 1 . . . . . . . . . . . . . . . 2 4 Hover . | . . . . . . . . . . . . . . . . . . . . . . . . . . . . . . . . . Flight 1 | . . . 1 . . . . . . . . . . . . . . . . . . . . . . . . . . . . . Utility 328 | 2 6 . 10 4 . 1 18 8 6 4 3 7 14 2 6 29 16 4 27 22 7 7 8 10 1 1 10 30 11 1 38 15 Device 174 | 1 . . . 1 . . 6 2 2 . 3 3 9 1 1 15 3 3 15 8 4 4 6 6 . . 7 23 10 1 31 9 Storage 12 | 1 1 . . . . . . . . . . 1 . 1 . . 1 . . 1 1 . . 1 . . . 2 . . 2 . Processor 30 | . . . . 1 . 1 . 1 . 1 . . 1 . 5 7 . 1 3 1 1 . . . . . 2 . 1 . 2 2 Hackware 21 | . . . . . . . . 4 2 2 . 1 3 . . . . . 1 7 . . . . . . . . . . 1 . Protection 91 | . 5 . 10 2 . . 12 1 2 1 . 2 1 . . 7 12 . 8 5 1 3 2 3 1 1 1 5 . . 2 4 Artifact . | . . . . . . . . . . . . . . . . . . . . . . . . . . . . . . . . . Weapon 247 | 2 2 1 17 24 2 . 30 12 10 10 6 4 17 8 5 15 15 1 4 5 3 . . . . 1 . 1 5 3 31 13 Energy Gun 23 | . . . . . . . . . . . . . . . . 3 3 . . . . . . . . . . . . . 11 6 Energy Cannon 43 | . . . . 1 . . 5 . . . . 1 2 1 2 8 5 1 . . 1 . . . . . . . 1 3 7 5 Ballistic Gun 78 | 2 2 . 10 14 1 . 15 2 5 5 3 2 8 4 1 3 1 . . . . . . . . . . . . . . . Ballistic Cannon 3 | . . . . . . . . . . . . . . . . . . . . . . . . . . . . . . . 1 2 Launcher 55 | . . 1 5 5 1 . 7 6 1 1 2 . 2 2 2 1 6 . 2 . . . . . . . . . 3 . 8 . Special Weapon 33 | . . . 2 4 . . 1 1 2 3 1 1 4 . . . . . 2 4 1 . . . . 1 . 1 1 . 4 . Impact Weapon 9 | . . . . . . . 2 3 1 1 . . 1 1 . . . . . . . . . . . . . . . . . . Slashing Weapon . | . . . . . . . . . . . . . . . . . . . . . . . . . . . . . . . . . Piercing Weapon 2 | . . . . . . . . . . . . . . . . . . . . 1 1 . . . . . . . . . . . Special Melee Weapon 1 | . . . . . . . . . 1 . . . . . . . . . . . . . . . . . . . . . . . Unidentified Prototypes 34 | . . . 2 2 . . 2 . . . . . . 1 . . 7 . 2 . . . 1 . 2 . 4 5 . 1 5 . Corrupted Parts 2 | . . . . . . . . . . . . . . . . . . 1 . . . . . . . . . . . 1 . . System Corruption 17 | . . . . . . . . . . . . . . . . . . 10 . . . . . . . . . . . 7 . . Parts Lost 149 | . 7 1 6 3 . . 17 10 3 . . . 2 3 3 5 6 1 2 11 10 4 2 2 . 1 5 6 3 . 24 12 Power 22 | . 2 . . . . . 1 . . . . . . 1 1 1 1 . . 1 1 1 . 1 . . 1 1 . . 5 4 Propulsion 18 | . . 1 1 . . . 5 2 1 . . . . 1 1 . 1 1 . 2 1 1 . . . . . . . . . . Utility 79 | . 3 . 5 3 . . 7 5 2 . . . 2 . 1 4 2 . 2 6 5 2 2 1 . 1 2 4 2 . 13 5 Weapon 30 | . 2 . . . . . 4 3 . . . . . 1 . . 2 . . 2 3 . . . . . 2 1 1 . 6 3 Highest Loss Streak 10 | . 2 1 2 2 . . 5 6 1 . . . 1 1 3 2 4 1 1 4 10 2 2 1 . 1 2 3 2 . 8 6 To Critical Strikes 2 | . . . . . . . 1 . . . . . . . . . . . . . . . . . . . . . . . . 1 Average Slot Usage (%) 85 | . 99 100 98 99 100 100 96 72 96 97 92 76 70 64 78 80 92 86 84 86 79 64 70 87 85 77 78 78 84 82 87 78 Engine 4 | . 13 14 11 11 11 11 6 3 6 7 6 2 . 2 6 8 6 . . . . . . . . . . . . . . . Reactor 5 | . . . . . . . . . . . . 10 13 10 6 3 4 6 5 4 5 9 14 7 5 5 5 10 14 12 12 10 Treads 11 | . 27 26 31 33 33 33 22 18 4 12 13 8 8 12 9 8 18 8 4 4 4 7 5 4 5 5 5 3 . . . . Leg 4 | . . . . . . . . . . . . . . . . . . 10 11 11 9 2 5 8 6 5 5 10 19 19 16 . Wheel 1 | . . 1 . . . . . 3 15 8 6 6 2 . 3 3 . . . . . . . . . . . . . . . 14 Device 12 | . 1 . . 1 . . 11 6 12 7 12 11 8 12 10 14 15 21 14 13 14 12 13 21 21 10 10 14 12 14 20 16 Storage 8 | . 14 14 11 11 11 11 7 7 7 7 6 6 6 6 6 6 7 13 10 11 9 6 5 9 10 10 10 9 9 9 8 8 Processor 9 | . . . . 3 11 13 14 10 14 7 6 6 6 6 21 21 9 6 6 6 8 . . . . . 1 4 8 9 10 15 Hackware 1 | . . . . . . . . 3 9 14 13 2 3 . . . . . 4 4 . . . . . . . . . . . . Protection 7 | . 12 14 21 17 11 8 15 4 7 14 6 5 6 . . 3 16 4 4 7 3 6 10 9 10 14 15 7 6 4 4 2 Energy Cannon 7 | . . . . . . . . . . . . 5 . . 4 7 5 13 16 16 11 14 14 14 15 14 15 13 13 12 10 5 Ballistic Gun 5 | . 28 17 21 21 21 22 14 3 11 14 12 . 11 6 5 . . . . . . . . . . . . . . . . . Naked Turns 52 | . . . . . . . . . . . . . . . . . . . . . . . . . . . . . . . . 52 Heaviest Build 250 | 15 96 96 107 104 99 99 131 119 108 119 133 175 171 167 125 169 159 159 192 202 239 250 166 140 140 149 157 178 178 181 243 231 Greatest Support 120 | 40 40 40 60 60 60 60 72 72 24 24 12 12 98 90 90 98 98 71 60 60 84 100 30 60 80 80 30 120 120 90 120 80 Greatest Overweight (x) 34 | . 2 5 34 1 1 1 2 3 4 9 11 14 14 2 11 34 2 5 3 3 3 6 5 4 2 4 5 4 1 2 2 2 Average Overweight (x) 3 | . 1 2 1 1 1 1 1 1 3 7 10 13 7 1 6 8 1 2 2 2 2 2 4 2 1 1 4 1 1 1 1 1 Largest Inventory Capacity 25 | 8 25 25 25 25 25 25 25 25 25 25 25 25 25 25 25 25 25 25 25 25 25 25 5 10 10 10 10 15 15 15 25 25 Average Capacity 22 | 7 23 25 25 25 25 25 25 25 25 25 25 25 25 25 25 25 25 25 25 25 25 12 5 9 10 10 10 11 15 15 21 23 Most Carried 25 | 8 25 25 25 25 25 25 25 25 25 25 25 25 25 25 25 25 25 25 25 25 25 25 5 10 10 10 10 15 15 15 25 25 Average Carried 21 | 6 22 24 24 24 25 25 24 21 24 24 24 24 23 24 23 24 23 24 24 23 24 12 5 9 9 9 9 10 14 14 20 20 Final Capacity 25 | 8 25 25 25 25 25 25 25 25 25 25 25 25 25 25 25 25 25 25 25 25 25 5 5 10 10 10 10 15 15 15 25 5 Final Carried 25 | 8 25 25 25 25 25 25 20 25 25 25 25 25 23 24 22 25 25 25 24 25 25 5 5 10 10 10 10 15 15 15 20 4 Class Distribution -------------------- 30% | Scavenger-Mutant 18% | Mutant 13% | Generator-Golem 8% | Scavenger-Golem 8% | Golem 7% | Bothacker-Mutant Dominant Class ---------------- Mutant | -10/Materials Mutant | -10/Mines Scavenger-Mutant | -9/Materials Scavenger-Mutant | -9/Storage Mutant | -9/Garrison Mutant | -9/Recycling Mutant | -7/Factory Bothacker-Mutant | -7/Garrison Bothacker-Mutant | -7/Factory Bothacker-Mutant | -7/Garrison Bothacker-Mutant | -6/Factory Scavenger-Mutant | -6/Waste Bothacker-Mutant | -6/Factory Scavenger-Assassin | -6/Lower Caves Scavenger-Skirmisher | -6/Lower Caves Scavenger-Mutant | -6/Zion Scavenger-Mutant | -6/Deep Caves Scavenger-Golem | -5/Proximity Caves Golem | -5/Factory Golem | -5/Garrison Commander-Mutant | -4/Factory Generator-Golem | -4/Waste Generator-Golem | -4/Factory Generator-Golem | -4/Extension Scavenger-Tank | -4/Cetus Generator-Golem | -4/Archives Generator-Golem | -4/Hub_04(d) Generator-Golem | -3/Research Generator-Golem | -3/Armory Generator-Golem | -3/Lab Generator-Golem | -2/Research Generator-Tank | -1/Access Resources | -11 -10 -10 -9 -9 -9 -9 -7 -7 -7 -7 -6 -6 -6 -6 -6 -6 -6 -5 -5 -5 -4 -4 -4 -4 -4 -4 -4 -3 -3 -3 -2 -1 ----------- Run | Scr Mat Min Mat Sto Gar Rec Fac Gar Fac Gar Fac Was Fac Low Low Zio Dee Pro Fac Gar Fac Was Fac Ext Cet Arc Hub Res Arm Lab Res Acc Matter Collected 16322 | 420 848 47 1031 1224 74 42 1398 619 285 491 333 386 1055 630 334 919 628 40 530 576 161 164 184 309 81 10 169 563 634 . 1660 477 Remotely 20 | . . . . . . . . . . . . . . . . . . . . . . . . 20 . . . . . . . . Salvage Created 44309 | 264 1123 115 1704 1563 74 86 2711 442 417 294 416 1423 1840 412 280 2058 1033 398 3187 1776 1071 1595 1736 1850 399 99 642 3884 1723 . 7122 2572 Parts 1928 | 21 57 8 109 79 11 5 147 17 28 19 21 20 94 11 16 112 8 22 163 75 38 32 68 47 21 3 32 172 80 . 291 101 Haulers Intercepted 23 | . 2 . 6 6 . . . . . . . . 3 . . . . . 1 . . . . . . . . 2 . . 3 . Recyclers Shooed 31 | . . . 3 4 . . 1 . . . . . 7 . . . . . 1 . 1 . . . . . . 5 . . 9 . Parts Field Recycled . | . . . . . . . . . . . . . . . . . . . . . . . . . . . . . . . . . Retrieved Matter . | . . . . . . . . . . . . . . . . . . . . . . . . . . . . . . . . . Parts Self-Destructed 47 | . . . . . . . . . . . . . . 7 12 6 . 22 . . . . . . . . . . . . . . Prevented . | . . . . . . . . . . . . . . . . . . . . . . . . . . . . . . . . . Kills | -11 -10 -10 -9 -9 -9 -9 -7 -7 -7 -7 -6 -6 -6 -6 -6 -6 -6 -5 -5 -5 -4 -4 -4 -4 -4 -4 -4 -3 -3 -3 -2 -1 ------- Run | Scr Mat Min Mat Sto Gar Rec Fac Gar Fac Gar Fac Was Fac Low Low Zio Dee Pro Fac Gar Fac Was Fac Ext Cet Arc Hub Res Arm Lab Res Acc Combat Hostiles Destroyed 651 | . 23 5 40 25 6 2 43 8 8 9 11 5 19 14 8 15 51 12 47 33 9 7 26 13 6 1 7 40 29 . 89 40 Melee 2 | . . . . . . 2 . . . . . . . . . . . . . . . . . . . . . . . . . . Guns 154 | . 23 3 21 20 4 . 29 . 5 6 5 . 17 4 2 1 1 . . . . . . . . . . . . . 4 9 Cannons 319 | . . . . . . . . . . . . 4 . . 2 10 4 12 43 32 8 7 26 13 6 1 7 40 22 . 55 27 AOE 162 | . . 2 19 5 2 . 13 7 3 3 6 . 2 10 4 1 45 . 4 . . . . . . . . . 7 . 29 . Classes Destroyed 34 | 3 4 1 6 . . 1 3 . 1 . . 1 . 1 . 5 3 1 2 . . . . . . . . . 1 . . 1 Worker 40 | 2 2 . 1 2 . . 4 . . . . . 11 . . . . . 5 . 1 . 2 . . . 1 2 . . 7 . Builder 30 | . 1 . 1 . . . 1 . 2 . . . 5 . . . . . 2 . 1 . 1 1 . . 2 2 . . 10 1 Tunneler 10 | 7 . 1 . . . . 1 . 1 . . . . . . . . . . . . . . . . . . . . . . . Hauler 23 | . 2 . 6 6 . . . . . . . . 3 . . . . . 1 . . . . . . . . 2 . . 3 . Recycler 44 | 1 1 . 3 2 . 1 3 . . . . . 6 . . . . . 2 . 1 . 2 5 . . . 5 . . 12 . Minesweeper 1 | . . . . . . . . . . . . . . . . . . 1 . . . . . . . . . . . . . . Mechanic 2 | . . . 1 . . . . . . . 1 . . . . . . . . . . . . . . . . . . . . . Operator 7 | . . . . . . . 3 . 1 . . . . . . . . . 1 . . . . 1 . . . . . . . 1 Drone 2 | . . . . . . 2 . . . . . . . . . . . . . . . . . . . . . . . . . . Watcher 20 | . . . 1 . . . 3 . . . . . 1 . . . . . . 1 . . 1 3 . . . 1 3 . 6 . Swarmer 97 | . 3 2 10 . 6 . . 4 . 5 3 . 3 3 4 . . 10 5 13 . . 10 . 1 . . . . . 5 10 Saboteur 7 | . . . . . . . . . . . . . . . . . . . 1 . . . . . . . . . 1 . 3 2 Grunt 206 | . 20 2 17 17 . . 24 2 4 1 6 . 8 6 4 . . . 10 6 . . 7 7 . . . 12 5 . 37 11 Brawler 18 | . . . 2 . . . 3 . . . . . . . . . . . 2 1 . . . . . . 1 3 1 . 3 2 Duelist 25 | . . . 1 . . . 3 . . . . . . 4 . . . . 2 2 . . 3 . . . . 1 3 . 5 1 Protector 4 | . . . 1 1 . . . . . . . . . . . . . . . . . . . . . . . . 1 . 1 . Sentry 62 | . . . 9 9 . . 4 1 . 1 1 . 2 1 . . . . 4 8 2 . 2 4 . 1 . 4 3 . 4 2 Demolisher 4 | . . . . . . . . . . . . . . . . . . . . . . . . . . . . . 4 . . . Specialist 12 | . . . . . . . . . 1 1 . . . . . . . . 2 . 2 . . . . . 2 . 2 . 2 . Hunter 34 | . . . . . . . 4 . 2 1 . . 2 . . . . 2 5 1 3 . . . 1 . . 2 . . 8 3 Programmer 87 | . . . . . . . 5 1 1 . 1 . 4 . . . . . 15 . . . 4 2 . . . 18 8 . 20 8 Heavy 6 | . . . . . . . . . . . . . . . . . . . 1 . 2 . . . . . 1 . 1 . 1 . Behemoth 3 | . . . . . . . . . . . . . . . . . . . . 2 1 . . . . . . . . . . . Compactor 11 | . . . . . . . . . . . . 5 . . . . . . . . . 6 . . . . . . . . . . Cetus Guard 4 | . . . . . . . . . . . . . . . . . . . . . . . . . 4 . . . . . . . Lightning 3 | . . . . . . . . . . . . . . . . . . . . . . . . . . . 3 . . . . . Executioner 1 | . . . . . . . . . . . . . . . . . . . . . . . . . . . . . . . . 1 Zionite 48 | . . . . . . . . . . . . . . . . 48 . . . . . . . . . . . . . . . . Z-Light 6 | . . . . . . . . . . . . . . . . . 6 . . . . . . . . . . . . . . . Packrat 1 | . . . . . . . . . . . . . . 1 . . . . . . . . . . . . . . . . . . Samaritan 1 | . . . . . . . . . . . . . . 1 . . . . . . . . . . . . . . . . . . Tinkerer 7 | . . . . . . . . . . . . . . . . 7 . . . . . . . . . . . . . . . . Assembler 2 | . . . . . . . . . . . . . . . . . 2 . . . . . . . . . . . . . . . Assembled 42 | . . 1 . . . . . . . . . . . . . . 41 . . . . . . . . . . . . . . . Golem 5 | . . . . . . . . . . . . . . . . . 4 . . . . 1 . . . . . . . . . . Thug 2 | . . . . . . . . . . . . . . . . 2 . . . . . . . . . . . . . . . . Butcher 5 | . . . . . . . . . . . . . . . . 4 . . . . . . . 1 . . . . . . . . Marauder 2 | . . . . . . . . . . . . . . . . 2 . . . . . . . . . . . . . . . . Fireman 1 | . . . . . . . . . . . . . . . . 1 . . . . . . . . . . . . . . . . Mutant 5 | . . . . . . . . . . . . . . . . 5 . . . . . . . . . . . . . . . . Best Kill Streak 40 | 2 5 2 8 6 4 1 9 3 5 3 4 1 19 6 4 4 40 5 7 8 7 3 5 5 4 1 5 5 13 . 18 10 Combat Bots Only 38 | . 3 2 8 6 4 1 9 3 3 3 3 1 3 6 4 2 38 5 6 8 5 3 4 5 4 1 3 5 13 . 11 10 Max Kills in Single Turn 29 | 1 1 2 3 4 1 1 4 1 2 2 3 1 9 4 3 2 29 1 2 2 1 1 2 2 1 1 4 2 3 . 4 2 Gunslinging 1 | . . . . . . . 1 . . 1 . . . . . . . . . . . . . . . . . . . . . . Exploded 29 | . . 2 3 4 1 . 3 1 2 2 3 . 1 4 3 1 29 . 2 . . . . . . . . . 2 . 4 . Melee 1 | . . . . . . 1 . . . . . . . . . . . . . . . . . . . . . . . . . . Uniques/NPCs Destroyed 1 | . . . . . . . . . . . . . . . . 1 . . . . . . . . . . . . . . . . Imprinter (-6/Zion) Combat | -11 -10 -10 -9 -9 -9 -9 -7 -7 -7 -7 -6 -6 -6 -6 -6 -6 -6 -5 -5 -5 -4 -4 -4 -4 -4 -4 -4 -3 -3 -3 -2 -1 -------- Run | Scr Mat Min Mat Sto Gar Rec Fac Gar Fac Gar Fac Was Fac Low Low Zio Dee Pro Fac Gar Fac Was Fac Ext Cet Arc Hub Res Arm Lab Res Acc Damage Taken 55536 | . 1374 181 1673 1322 81 . 3798 1220 433 542 656 19 2272 712 583 953 1682 926 3434 3634 3224 899 1786 1003 284 88 2032 2675 3090 83 7544 7333 Core 5679 | . 104 . 129 178 . . 302 123 43 101 70 . 92 53 25 122 183 94 322 309 441 . 120 77 31 . 57 141 195 65 687 1615 Absorbed by Shields 5323 | . . . . . . . . . . . 253 . 364 . . 193 . . 459 672 426 . . . 100 . . . 70 . 1784 1002 Reduced by Siege Mode 21 | . . . . . . . . . . . . . . . . 21 . . . . . . . . . . . . . . . . Redirected to Shielding 332 | . . . . . . . . . 20 11 . . . . . . 46 . 102 . . . 153 . . . . . . . . . Regen/Repaired (Parts) 364 | . 262 . . 11 . . . . . . . . . . . . . . 91 . . . . . . . . . . . . . Core Remaining (%) 46 | 100 . 58 . . . 23 . . . 18 . . . . . . . 24 . 36 . . . . . . 36 . . 69 52 . Volleys Fired 4419 | 25 113 10 154 124 6 1 158 30 23 28 33 156 94 34 17 2010 76 30 154 120 50 42 83 57 15 4 30 158 106 18 332 128 Largest 3 | 2 2 2 2 2 2 2 2 2 2 2 2 1 2 2 2 2 2 2 3 3 3 3 3 3 3 3 3 3 3 3 3 3 Hottest 213 | 40 40 40 100 100 46 46 46 59 56 56 56 35 56 56 113 120 113 50 75 75 88 75 75 75 75 75 75 75 102 75 213 188 Shots Fired 6524 | 50 225 19 239 234 10 2 285 35 41 43 60 151 177 45 29 2166 84 57 279 217 73 78 209 150 44 13 81 339 194 36 618 241 Gun 1491 | 50 225 18 220 219 8 2 261 18 34 30 52 . 167 20 12 11 6 . . . . . . . . . . . . . 63 75 Cannon 4771 | . . . . . . . 7 . . . . 144 3 15 12 2150 56 57 267 191 71 78 209 150 44 13 81 339 166 36 516 166 Launcher 165 | . . 1 18 10 2 . 14 14 2 2 6 . 3 10 5 5 22 . 3 . . . . . . . . . 12 . 36 . Special 97 | . . . 1 5 . . 3 3 5 11 2 7 4 . . . . . 9 26 2 . . . . . . . 16 . 3 . Kinetic 1376 | 50 225 18 220 219 8 2 261 18 34 30 52 . 167 20 12 11 6 . . . . . . . . . . . . . 4 19 Thermal 4816 | . . . 1 5 . . 10 2 . . . 144 3 15 12 2150 50 57 267 191 60 78 209 150 44 13 81 339 166 26 549 194 Explosive 149 | . . 1 18 10 2 . 9 14 2 2 6 . 2 10 2 5 18 . . . . . . . . . . . 12 . 36 . Electromagnetic 97 | . . . . . . . 5 . . . . . 1 . 3 . 10 . 3 . 11 . . . . . . . . 10 26 28 Robot Hit Streak 41 | 5 11 9 15 17 2 4 38 17 20 8 12 29 35 10 12 18 14 7 19 19 16 27 9 23 12 6 16 24 41 . 36 30 Robot Miss Streak 7 | 4 3 3 7 3 1 . 2 1 2 3 2 2 6 5 4 7 4 2 3 2 2 2 4 3 5 1 3 3 3 . 4 4 Penetration Max 1 | . . . . . . . . . . . . . 1 . . . . . . . . . . . . . . . . . . . Secondary Targets 20 | . 3 . . 4 2 . 4 . . 1 . . 4 2 . . . . . . . . . . . . . . . . . . Max Gunslinging Chain 1 | . 1 . . 1 1 . 1 . . 1 . . 1 1 . . . . . . . . . . . . . . . . . . Capacitor 14 | . . . . . . . . . . . . . . . . . . . . . . 14 . . . . . . . . . . Shots Hit Robots 3085 | 28 161 13 158 166 5 2 234 35 28 28 45 129 140 24 21 208 48 33 147 146 58 66 116 89 27 10 53 204 125 . 364 174 Core Hits 1671 | 11 57 10 97 62 6 5 136 13 15 16 32 14 148 50 31 104 131 13 70 42 17 17 42 33 11 3 23 73 60 . 263 66 Critical Kills 9 | . . . . 1 . . 1 . 1 1 . 1 1 . . 3 . . . . . . . . . . . . . . . . Critical Parts Destroyed 10 | . 1 . 1 1 . . 1 3 1 1 . . 1 . . . . . . . . . . . . . . . . . . . Critical Strikes 26 | . 1 . 1 2 . . 2 3 2 2 . 1 2 . . 3 . . . 1 . . . . . . . . . . 1 5 Meltdown 4 | . . . . . . . . . . . . 1 . . . 3 . . . . . . . . . . . . . . . . Destroy 12 | . 1 . 1 2 . . 2 . 2 2 . . 2 . . . . . . . . . . . . . . . . . . . Blast 4 | . . . . . . . . . . . . . . . . . . . . . . . . . . . . . . . 1 3 Corrupt 2 | . . . . . . . . . . . . . . . . . . . . . . . . . . . . . . . . 2 Smash 3 | . . . . . . . . 3 . . . . . . . . . . . . . . . . . . . . . . . . Impale 1 | . . . . . . . . . . . . . . . . . . . . 1 . . . . . . . . . . . . Melee Attacks 34 | . . . . . . . 2 14 . 2 . . 1 2 . . . . . 12 1 . . . . . . . . . . . Impact 21 | . . . . . . . 2 14 . 2 . . 1 2 . . . . . . . . . . . . . . . . . . Slashing . | . . . . . . . . . . . . . . . . . . . . . . . . . . . . . . . . . Piercing 13 | . . . . . . . . . . . . . . . . . . . . 12 1 . . . . . . . . . . . Sneak Attacks 2 | . . . . . . . . . . . . . . 2 . . . . . . . . . . . . . . . . . . Combat Hostiles . | . . . . . . . . . . . . . . . . . . . . . . . . . . . . . . . . . Follow-up Attacks . | . . . . . . . . . . . . . . . . . . . . . . . . . . . . . . . . . Damage Inflicted 131883 | 362 1841 243 3577 3151 166 246 4997 1809 800 560 1608 4184 5040 2022 903 7498 5369 1458 7663 6384 2729 3249 5631 4204 1262 440 2807 10842 7505 18 25544 7771 Guns 18590 | 362 1810 115 1726 2460 75 31 3278 208 436 416 787 . 2692 232 289 159 58 . . . . . . . . . . . . . 1636 1820 Cannons 82661 | . . . . . . . . . . . . 4184 . . 245 6381 1224 1458 7029 6158 2729 3249 5631 4204 1262 440 2493 10671 5572 . 13801 5930 Explosions 28717 | . . 90 1806 613 91 . 1648 786 340 144 782 . 2292 1580 369 958 4087 . 614 . . . . . . . 314 171 1925 . 10107 . Melee 1206 | . . . . . . . . 794 . . . . . 210 . . . . . 202 . . . . . . . . . . . . Ramming 657 | . 31 38 45 78 . 215 40 . 24 . 39 . 56 . . . . . 20 24 . . . . . . . . 8 18 . 21 Kinetic 16287 | 362 1810 115 1726 2460 75 31 3278 208 436 416 787 . 2692 232 289 159 58 . . . . . . . . . . . . . 174 979 Thermal 83740 | . . . 51 . . . 107 21 61 . . 4184 . . 245 6381 1143 1458 7181 6158 2450 3249 5631 4204 1262 440 2493 10797 5572 . 14616 6036 Explosive 26651 | . . 90 1755 613 91 . 1210 786 279 144 782 . 2188 1580 264 958 3784 . 158 . . . . . . . . . 1925 . 10044 . Electromagnetic 3342 | . . . . . . . 362 . . . . . 104 . 105 . 384 . 304 . 279 . . . . . 314 45 . . 710 735 Impact 1004 | . . . . . . . . 794 . . . . . 210 . . . . . . . . . . . . . . . . . . Slashing . | . . . . . . . . . . . . . . . . . . . . . . . . . . . . . . . . . Piercing 202 | . . . . . . . . . . . . . . . . . . . . 202 . . . . . . . . . . . . Highest Corruption 19 | . . . . 4 4 4 5 6 8 8 6 15 16 16 16 8 . 10 3 3 . 4 5 5 5 5 14 12 12 19 4 12 Average Corruption 6 | . . . . 4 4 4 1 5 7 8 5 13 15 16 9 8 . 10 2 3 . 3 4 5 5 5 7 5 12 12 1 6 Corruption Purged 9 | . . . . . . . 3 1 . . . . . . . . . . . . . . . . . . . . . . 5 . Corruption Blocked 13 | . . . . . . . . . . . . . . . . . . . 6 . 2 5 . . . . . . . . . . Effects 873 | . . . . 43 3 34 11 22 23 31 24 48 85 70 31 3 . 3 59 91 . 8 27 65 10 23 19 54 36 25 16 9 Message Errors 206 | . . . . 11 1 8 4 2 9 7 4 11 27 20 6 . . 2 12 17 . 2 7 9 2 6 1 16 10 6 5 1 Matter Fused 203 | . . . . 12 . 7 2 8 3 12 6 10 13 14 9 . . 1 12 19 . 1 11 18 4 4 7 9 8 8 2 3 Heat Flow Errors 128 | . . . . 5 . 6 . 2 4 1 4 8 15 8 6 1 . . 11 15 . . 1 11 . 3 4 10 5 3 5 . Energy Discharges 104 | . . . . 6 . 1 3 3 2 2 2 5 8 8 2 1 . . 8 16 . 1 4 12 1 2 2 6 4 3 1 1 Parts Rejected 7 | . . . . . . . 2 . . . . . 1 1 . . . . 1 1 . . . . . . 1 . . . . . Data Loss (minor) 98 | . . . . 6 1 6 . 7 2 6 5 5 8 6 3 1 . . 7 12 . 2 1 6 1 3 1 5 2 1 . 1 Data Loss (major) 38 | . . . . 1 1 3 . . 1 1 . 3 6 1 3 . . . 2 3 . 2 . 2 1 2 . . 3 1 1 1 Misfires 41 | . . . . 1 . . . . 2 2 2 . 2 6 1 . . . 4 3 . . . 3 1 2 1 6 1 3 . 1 Alerts 19 | . . . . 1 . 3 . . . . 1 1 2 3 . . . . 1 4 . . 1 1 . . . . . . 1 . Misdirections 1 | . . . . . . . . . . . . . . . . . . . . . . . . . . . . . . . . 1 Weapon Failures 28 | . . . . . . . . . . . . 5 3 3 1 . . . 1 1 . . 2 3 . 1 2 2 3 . 1 . Overload Shots . | . . . . . . . . . . . . . . . . . . . . . . . . . . . . . . . . . Overflow Damage 5485 | . . . 78 10 . . 14 244 82 . 18 . 239 206 10 148 185 114 510 235 157 . 585 208 25 . 42 834 271 . 1071 199 Projectiles 3879 | . . . . . . . . . . . . . . . . 148 61 114 488 235 157 . 585 208 25 . 18 808 144 . 689 199 Explosions 1201 | . . . 78 10 . . 14 38 74 . 18 . 239 15 10 . 124 . 22 . . . . . . . 24 26 127 . 382 . Melee 405 | . . . . . . . . 206 8 . . . . 191 . . . . . . . . . . . . . . . . . . Knockbacks 19 | . . . 1 . . 1 . 3 . . 1 . 1 1 . . . . . . . . . . . . . . 1 . 2 8 Impact 8 | . . . 1 . . 1 . 2 . . 1 . 1 1 . . . . . . . . . . . . . . 1 . . . Kinetic 10 | . . . . . . . . . . . . . . . . . . . . . . . . . . . . . . . 2 8 Secondary 1 | . . . . . . . . 1 . . . . . . . . . . . . . . . . . . . . . . . . Self-Inflicted Damage 1749 | . . . 136 20 . . 73 207 142 . 19 . 205 150 79 . 133 . 91 . . . . . . . 87 . 55 18 324 10 Shots 56 | . . . 6 1 . . 6 6 3 . . . 5 7 4 . 4 . 3 . . . . . . . 1 . 2 . 8 . Rammed 57 | . 7 4 4 9 . 14 5 . 1 . 2 . 8 . . . . . . . . . . . . . . . . . . 3 Targets Rammed 71 | . 8 5 5 10 . 18 6 . 1 . 2 . 8 . . . . . 2 2 . . . . . . . . 1 . . 3 Kicked 5 | . . . . . . . . . . . . . . . . . . . 2 2 . . . . . . . . 1 . . . Crushed 9 | . 1 1 1 1 . 4 1 . . . . . . . . . . . . . . . . . . . . . . . . . Highest Temperature 542 | . 36 65 114 263 . 226 333 247 220 195 198 285 414 247 408 428 116 4 237 261 280 366 204 240 . 193 200 542 410 224 456 290 Average Temperature 73 | . 12 31 21 59 . 87 72 109 85 62 64 76 127 87 177 63 33 2 50 66 111 121 79 99 . 92 85 77 129 78 91 85 Received Heat Transfer 8510 | . 699 102 666 657 . . 993 237 93 111 176 9 318 165 219 56 340 . 541 571 237 . 180 222 . 9 256 339 188 . 653 473 Effects 38 | . . . . 1 . . . . . . . 1 4 3 3 5 . . . . . 2 . . . . . 5 10 . 3 1 Shutdowns 10 | . . . . . . . . . . . . . 1 . 2 . . . . . . 2 . . . . . 1 4 . . . Energy Bleed 9 | . . . . 1 . . . . . . . . 3 . . 1 . . . . . . . . . . . 1 1 . 1 1 Interference 13 | . . . . . . . . . . . . 1 . 3 . 2 . . . . . . . . . . . 2 3 . 2 . Matter Decay 3 | . . . . . . . . . . . . . . . 1 1 . . . . . . . . . . . . 1 . . . Short Circuit 3 | . . . . . . . . . . . . . . . . 1 . . . . . . . . . . . 1 1 . . . Siege Activations 2 | . . . . . . . . . . . . . . 1 . 1 . . . . . . . . . . . . . . . . Total Turns 32 | . . . . . . . . . . . . . . 5 . 27 . . . . . . . . . . . . . . . . Longest Duration 27 | . . . . . . . . . . . . . . 5 . 27 . . . . . . . . . . . . . . . . Robots Corrupted 7 | . . . . . . . 1 . . . . . . . . . 1 . . . . . . . . . . . . . 1 4 Combat Hostiles 7 | . . . . . . . 1 . . . . . . . . . 1 . . . . . . . . . . . . . 1 4 Parts Fried 44 | . . . . . . . 1 2 3 . . . . 1 . . 4 . . . 1 . . 4 4 . 4 . . . 9 11 Impact Corruptions 15 | . . . . . . 1 . 3 1 . . . . 10 . . . . . . . . . . . . . . . . . . Robots Melted 5 | . . . . . . . . . . . . 1 . . . 4 . . . . . . . . . . . . . . . . Combat Hostiles 4 | . . . . . . . . . . . . 1 . . . 3 . . . . . . . . . . . . . . . . Parts Melted 80 | . . . . . . . 2 . . 1 . 2 . . . 16 1 1 3 3 2 . 4 4 . . . 11 3 . 15 12 Heat Transferred 55462 | . . . 50 . . . 211 74 50 . . 6550 . . 296 8178 1261 850 3750 2960 1250 1675 3025 2375 700 275 1128 5500 2571 . 8443 4290 Parts Sabotaged 2 | . . . . . . . . . . . . . . . . . . . . . . . . . . . . 1 . . . 1 Parts Stolen . | . . . . . . . . . . . . . . . . . . . . . . . . . . . . . . . . . Parts Stripped . | . . . . . . . . . . . . . . . . . . . . . . . . . . . . . . . . . Power Chain Reactions 4 | . . . . . . . 1 . . . . . . . . . 1 . 1 . . . . . . . . 1 . . . . Missiles Intercepted . | . . . . . . . . . . . . . . . . . . . . . . . . . . . . . . . . . Alert | -11 -10 -10 -9 -9 -9 -9 -7 -7 -7 -7 -6 -6 -6 -6 -6 -6 -6 -5 -5 -5 -4 -4 -4 -4 -4 -4 -4 -3 -3 -3 -2 -1 ------- Run | Scr Mat Min Mat Sto Gar Rec Fac Gar Fac Gar Fac Was Fac Low Low Zio Dee Pro Fac Gar Fac Was Fac Ext Cet Arc Hub Res Arm Lab Res Acc Peak Influence 2269 | 45 324 162 1008 1272 1077 518 1045 884 623 655 455 51 349 . . . . . 701 1217 932 273 461 310 264 267 906 898 711 . 2269 2044 Initial 1343 | . 3 107 . 425 826 484 1045 650 464 436 343 50 3 . . . . . . 460 638 267 30 180 . 105 . 465 333 . . 1343 Average 469 | 18 146 33 585 582 961 366 744 777 494 580 315 17 96 . . . . . 315 857 696 197 145 88 137 132 210 569 493 . 605 1546 Maximum Alert Level 5 | . 1 . 3 4 3 2 3 3 2 2 2 . 1 . . . . . 3 4 3 1 2 1 1 1 3 3 3 . 5 5 Low Security (%) 31 | 100 67 100 19 . . . . . . . 2 100 73 . . . . . 41 . . 23 72 88 67 63 62 . . . 36 . Level 1 15 | . 32 . 1 14 . 71 . . 2 . 83 . 26 . . . . . 23 . . 76 22 11 32 36 13 2 35 . 15 . Level 2 27 | . . . 45 58 . 28 38 18 97 100 13 . . . . . . . 35 37 46 . 4 . . . 14 79 56 . 3 . Level 3 17 | . . . 33 24 100 . 61 81 . . . . . . . . . . . 35 53 . . . . . 8 17 7 . 26 . Level 4 5 | . . . . 2 . . . . . . . . . . . . . . . 27 . . . . . . . . . . 8 62 Level 5 1 | . . . . . . . . . . . . . . . . . . . . . . . . . . . . . . . 8 19 High Security . | . . . . . . . . . . . . . . . . . . . . . . . . . . . . . . . . 18 Max Security . | . . . . . . . . . . . . . . . . . . . . . . . . . . . . . . . . . Squads Dispatched 135 | . 7 . 4 13 . . 12 . 8 . 3 . 5 . . . . . 10 . 7 . 5 1 . . 3 13 8 . 22 14 Investigation 12 | . 4 . . 1 . . . . 3 . . . 2 . . . . . . . . . . . . . . 1 . . 1 . Extermination 36 | . . . . . . . 4 . 2 . 1 . 2 . . . . . 6 . 1 . 2 . . . . 6 3 . 7 2 Reinforcement 38 | . 3 . 2 2 . . 3 . 3 . 1 . 1 . . . . . 3 . 3 . 1 1 . . 3 1 2 . 8 1 Assault 34 | . . . 2 4 . . 3 . . . 1 . . . . . . . 1 . . . . . . . . 4 3 . 5 11 Garrison 15 | . . . . 6 . . 2 . . . . . . . . . . . . . 3 . 2 . . . . 1 . . 1 . Intercept . | . . . . . . . . . . . . . . . . . . . . . . . . . . . . . . . . . Searches Triggered 3 | . . . . . . . 3 . . . . . . . . . . . . . . . . . . . . . . . . . Construction Impeded 6 | . . . 1 . . . . . . . . . . . . . . . 1 . . . . . . . 1 . . . 2 1 Haulers Reinforced 5 | . . . . . . . . . . . . . 1 . . . . . . . . . . . . . . 1 . . 3 . Active Scanning Responses 1 | . . . . . . . . . . . . . . . . . . . . . . . . . . . . 1 . . . . Cargo Convoy Interrupts 1 | . . . . . . . . . . . . . 1 . . . . . . . . . . . . . . . . . . . Stealth | -11 -10 -10 -9 -9 -9 -9 -7 -7 -7 -7 -6 -6 -6 -6 -6 -6 -6 -5 -5 -5 -4 -4 -4 -4 -4 -4 -4 -3 -3 -3 -2 -1 --------- Run | Scr Mat Min Mat Sto Gar Rec Fac Gar Fac Gar Fac Was Fac Low Low Zio Dee Pro Fac Gar Fac Was Fac Ext Cet Arc Hub Res Arm Lab Res Acc Distress Signals 31 | . 2 . 8 1 . . 3 . . . 2 . 1 . . . . . . . 1 . 1 2 1 . . 1 1 . 5 2 Communications Jammed 1 | . . . . . . . . . . . . . . . . . . . . . . . . . . . . 1 . . . . Distress Signals 1 | . . . . . . . . . . . . . . . . . . . . . . . . . . . . 1 . . . . Times Spotted 1062 | . 42 7 62 55 7 77 61 10 15 15 17 5 37 15 8 51 51 14 56 36 17 9 32 29 10 4 23 53 32 . 121 91 Peak Tracking Total 37 | . 5 2 7 10 3 6 7 3 3 4 4 2 7 7 4 4 37 5 6 10 5 2 4 4 5 2 8 5 7 . 12 29 Tactical Retreats 38 | . . 1 1 . . . . 3 . . 1 . 3 1 1 4 . 2 . 2 . 2 2 . . . . 1 1 . 5 8 Traps | -11 -10 -10 -9 -9 -9 -9 -7 -7 -7 -7 -6 -6 -6 -6 -6 -6 -6 -5 -5 -5 -4 -4 -4 -4 -4 -4 -4 -3 -3 -3 -2 -1 ------- Run | Scr Mat Min Mat Sto Gar Rec Fac Gar Fac Gar Fac Was Fac Low Low Zio Dee Pro Fac Gar Fac Was Fac Ext Cet Arc Hub Res Arm Lab Res Acc Traps Triggered 42 | . 5 . 2 2 . . . 5 3 1 4 . . . . . . . 2 9 1 . 2 1 . . 2 . 2 . 1 . Indirectly 1 | . . . . . . . . . . . . . . . . . . . . . . . . . . . 1 . . . . . Trap Hack Attempts . | . . . . . . . . . . . . . . . . . . . . . . . . . . . . . . . . . Triggered . | . . . . . . . . . . . . . . . . . . . . . . . . . . . . . . . . . Disarmed . | . . . . . . . . . . . . . . . . . . . . . . . . . . . . . . . . . Reprogrammed . | . . . . . . . . . . . . . . . . . . . . . . . . . . . . . . . . . Reused . | . . . . . . . . . . . . . . . . . . . . . . . . . . . . . . . . . Traps Extracted . | . . . . . . . . . . . . . . . . . . . . . . . . . . . . . . . . . Installed . | . . . . . . . . . . . . . . . . . . . . . . . . . . . . . . . . . Triggered 2 | . . . . . . . . . . . . . . . . . . . . . . . . . . . . 2 . . . . Machines | -11 -10 -10 -9 -9 -9 -9 -7 -7 -7 -7 -6 -6 -6 -6 -6 -6 -6 -5 -5 -5 -4 -4 -4 -4 -4 -4 -4 -3 -3 -3 -2 -1 ---------- Run | Scr Mat Min Mat Sto Gar Rec Fac Gar Fac Gar Fac Was Fac Low Low Zio Dee Pro Fac Gar Fac Was Fac Ext Cet Arc Hub Res Arm Lab Res Acc Machines Disabled 118 | . . . 5 7 . . 1 2 5 1 1 . 13 . . 8 1 . 16 6 1 . 1 4 4 3 19 5 4 2 8 1 Max in Single Turn 14 | . . . 3 1 . . 1 1 4 1 1 . 5 . . 1 1 . 8 1 . . 1 1 1 1 14 1 1 1 1 1 Garrison Access 16 | . . . . . . . 2 . . . 2 . 1 . . . . . 3 . . . 1 . . . 1 1 . . 3 2 Garrison Relay 7 | . . . . . . . . 2 . 1 . . . . . . . . . 4 . . . . . . . . . . . . Network Hub 2 | . . . . . . . . . . . . . . . . . . . . . . . . . . . 2 . . . . . Machines Sabotaged . | . . . . . . . . . . . . . . . . . . . . . . . . . . . . . . . . . Garrisons Compromised 1 | . . . . . . . . . . . . . . . . . . . . . . . . . . . . 1 . . . . Overloaded Fab Kills . | . . . . . . . . . . . . . . . . . . . . . . . . . . . . . . . . . Hacking | -11 -10 -10 -9 -9 -9 -9 -7 -7 -7 -7 -6 -6 -6 -6 -6 -6 -6 -5 -5 -5 -4 -4 -4 -4 -4 -4 -4 -3 -3 -3 -2 -1 --------- Run | Scr Mat Min Mat Sto Gar Rec Fac Gar Fac Gar Fac Was Fac Low Low Zio Dee Pro Fac Gar Fac Was Fac Ext Cet Arc Hub Res Arm Lab Res Acc Machines Accessed 115 | . 5 . 9 10 . 12 8 . 4 . 3 . 6 2 1 . . . 16 . . . 3 15 1 . 1 3 7 . 6 3 Terminals 70 | . 2 . 7 8 . 6 5 . 2 . 1 . 3 . . . . . 6 . . . 2 15 1 . . 2 5 . 4 1 Fabricators 2 | . . . . . . . . . . . . . . . . . . . 2 . . . . . . . . . . . . . Repair Stations 7 | . 1 . . 1 . . . . . . . . 1 . . . . . 2 . . . . . . . . . 2 . . . Recycling Units 9 | . 2 . . . . 6 . . . . . . . . . . . . . . . . . . . . . 1 . . . . Scanalyzers 6 | . . . 2 . . . . . 1 . . . 1 . . . . . 2 . . . . . . . . . . . . . Garrison Access 18 | . . . . 1 . . 3 . 1 . 2 . 1 . . . . . 4 . . . 1 . . . 1 . . . 2 2 Total Hacks 271 | . 15 . 23 22 . 35 13 . 12 . 6 . 14 4 1 . . . 32 . . . 5 30 3 . 1 8 24 . 19 4 Successful 112 | . 8 . 10 6 . 22 7 . 6 . 3 . 5 4 1 . . . 14 . . . 2 6 . . 1 3 7 . 5 2 Failed 158 | . 6 . 13 16 . 13 6 . 6 . 3 . 9 . . . . . 18 . . . 3 24 3 . . 5 17 . 14 2 Catastrophic 49 | . 1 . 5 7 . . 3 . 2 . . . 2 . . . . . 5 . . . 2 8 . . . 4 3 . 6 1 Database Lockouts 1 | . 1 . . . . . . . . . . . . . . . . . . . . . . . . . . . . . . . Manual 98 | . 5 . 10 11 . 23 3 . 2 . 4 . 3 . . 4 . . 15 . . . 3 5 1 . . . 2 . 7 . Terminals 179 | . 7 . 17 17 . 21 8 . 6 . 4 . 7 . . . . . 15 . . . 4 30 3 . . 7 17 . 14 2 Fabricators 2 | . . . . . . . . . . . . . . . . . . . 2 . . . . . . . . . . . . . Repair Stations 22 | . 5 . . 4 . . . . . . . . 1 . . . . . 5 . . . . . . . . . 7 . . . Recycling Units 18 | . 3 . . . . 14 . . . . . . . . . . . . . . . . . . . . . 1 . . . . Scanalyzers 22 | . . . 6 . . . . . 5 . . . 5 . . . . . 6 . . . . . . . . . . . . . Garrison Access 23 | . . . . 1 . . 5 . 1 . 2 . 1 . . . . . 4 . . . 1 . . . 1 . . . 5 2 Terminal Hacks 48 | . 2 . 6 3 . 9 3 . 1 . 1 . 2 4 1 . . . 2 . . . 1 6 . . . 2 5 . . . Record 4 | . . . . . . . . . . . . . . 3 . . . . . . . . . . . . . . 1 . . . Part Schematic 5 | . 1 . . . . 3 . . . . . . 1 . . . . . . . . . . . . . . . . . . . Robot Analysis 4 | . . . . . . 4 . . . . . . . . . . . . . . . . . . . . . . . . . . Prototype ID Bank 5 | . . . 3 . . 2 . . . . . . . . . . . . . . . . . . . . . . . . . . Open Door 10 | . . . . 2 . . . . . . . . . 1 1 . . . . . . . . 5 . . . . 1 . . . Branch Access Points 6 | . . . 1 . . . 1 . . . 1 . 1 . . . . . 1 . . . 1 . . . . . . . . . Unreport Threat 7 | . . . . 1 . . 1 . . . . . . . . . . . 1 . . . . 1 . . . 2 1 . . . Locate Traps 5 | . 1 . 1 . . . . . 1 . . . . . . . . . . . . . . . . . . . 2 . . . Hauler Manifests 1 | . . . . . . . 1 . . . . . . . . . . . . . . . . . . . . . . . . . Zone Layout 1 | . . . 1 . . . . . . . . . . . . . . . . . . . . . . . . . . . . . Fabricator Hacks . | . . . . . . . . . . . . . . . . . . . . . . . . . . . . . . . . . Repair Station Hacks 12 | . 4 . . 2 . . . . . . . . . . . . . . 4 . . . . . . . . . 2 . . . Scan Component 7 | . 2 . . 1 . . . . . . . . . . . . . . 2 . . . . . . . . . 2 . . . Repair 5 | . 2 . . 1 . . . . . . . . . . . . . . 2 . . . . . . . . . . . . . Recycling Unit Hacks 7 | . . . . . . 6 . . . . . . . . . . . . . . . . . . . . . 1 . . . . Report Inventory 5 | . . . . . . 5 . . . . . . . . . . . . . . . . . . . . . . . . . . Retrieve Components 2 | . . . . . . 1 . . . . . . . . . . . . . . . . . . . . . 1 . . . . Scanalyzer 10 | . . . 3 . . . . . 4 . . . 2 . . . . . 1 . . . . . . . . . . . . . Insert Component 7 | . . . 2 . . . . . 2 . . . 2 . . . . . 1 . . . . . . . . . . . . . Analyze 3 | . . . 1 . . . . . 2 . . . . . . . . . . . . . . . . . . . . . . . Garrison Access Hacks 20 | . . . . 1 . . 3 . 1 . 2 . 1 . . . . . 4 . . . 1 . . . 1 . . . 4 2 Unlock Access 4 | . . . . 1 . . 1 . 1 . . . . . . . . . 1 . . . . . . . . . . . . . Seal Access 13 | . . . . . . . 1 . . . 2 . 1 . . . . . 3 . . . 1 . . . 1 . . . 2 2 Coupler Status 3 | . . . . . . . 1 . . . . . . . . . . . . . . . . . . . . . . . 2 . Unauthorized Hacks 15 | . 2 . 1 . . 7 1 . . . . . . . . . . . 3 . . . . . . . . . . . 1 . Terminals 5 | . . . 1 . . 1 . . . . . . . . . . . . 3 . . . . . . . . . . . . . Track 4 | . . . 1 . . 1 . . . . . . . . . . . . 2 . . . . . . . . . . . . . Assimilate 1 | . . . . . . . . . . . . . . . . . . . 1 . . . . . . . . . . . . . Fabricators . | . . . . . . . . . . . . . . . . . . . . . . . . . . . . . . . . . Repair Stations . | . . . . . . . . . . . . . . . . . . . . . . . . . . . . . . . . . Recycling Units 8 | . 2 . . . . 6 . . . . . . . . . . . . . . . . . . . . . . . . . . Tunnel 8 | . 2 . . . . 6 . . . . . . . . . . . . . . . . . . . . . . . . . . Scanalyzers . | . . . . . . . . . . . . . . . . . . . . . . . . . . . . . . . . . Garrison Access 2 | . . . . . . . 1 . . . . . . . . . . . . . . . . . . . . . . . 1 . Restock 2 | . . . . . . . 1 . . . . . . . . . . . . . . . . . . . . . . . 1 . Data Cores Recovered 3 | . . . . . . . 2 . . . . . . . . . . . 1 . . . . . . . . . . . . . Used . | . . . . . . . . . . . . . . . . . . . . . . . . . . . . . . . . . Hacking Detections 85 | . 3 . 9 8 . 7 7 . 3 . 1 . 5 . . . . . 13 . . . 2 12 1 . . 2 6 . 5 1 Full Trace Events 7 | . . . 1 2 . . . . 2 . . . 2 . . . . . . . . . . . . . . . . . . . Feedback Events 1 | . . . . . . . . . . . . . 1 . . . . . . . . . . . . . . . . . . . Corruption 1 | . . . . . . . . . . . . . 1 . . . . . . . . . . . . . . . . . . . Feedback Blocked 1 | . . . . . . . . . 1 . . . . . . . . . . . . . . . . . . . . . . . Robot Schematics Acquired . | . . . . . . . . . . . . . . . . . . . . . . . . . . . . . . . . . Robots Built . | . . . . . . . . . . . . . . . . . . . . . . . . . . . . . . . . . Authchips . | . . . . . . . . . . . . . . . . . . . . . . . . . . . . . . . . . Time . | . . . . . . . . . . . . . . . . . . . . . . . . . . . . . . . . . Total Robot Build Rating . | . . . . . . . . . . . . . . . . . . . . . . . . . . . . . . . . . Part Schematics Acquired 4 | . 1 . . . . 3 . . . . . . . . . . . . . . . . . . . . . . . . . . Parts Built . | . . . . . . . . . . . . . . . . . . . . . . . . . . . . . . . . . Authchips . | . . . . . . . . . . . . . . . . . . . . . . . . . . . . . . . . . Time . | . . . . . . . . . . . . . . . . . . . . . . . . . . . . . . . . . Total Part Build Rating . | . . . . . . . . . . . . . . . . . . . . . . . . . . . . . . . . . Parts Repaired 4 | . 2 . . 1 . . . . . . . . . . . . . . 1 . . . . . . . . . . . . . Time 275 | . 52 . . 136 . . . . . . . . . . . . . . 87 . . . . . . . . . . . . . Parts Recycled . | . . . . . . . . . . . . . . . . . . . . . . . . . . . . . . . . . Recycled Matter . | . . . . . . . . . . . . . . . . . . . . . . . . . . . . . . . . . Retrieved Matter . | . . . . . . . . . . . . . . . . . . . . . . . . . . . . . . . . . Retrieved Components 15 | . . . . . . 5 . . . . . . . . . . . . . . . . . . . . . 10 . . . . Parts Scanalyzed 1 | . . . 1 . . . . . . . . . . . . . . . . . . . . . . . . . . . . . Part Schematics Acquired . | . . . . . . . . . . . . . . . . . . . . . . . . . . . . . . . . . Parts Damaged . | . . . . . . . . . . . . . . . . . . . . . . . . . . . . . . . . . Bothacking | -11 -10 -10 -9 -9 -9 -9 -7 -7 -7 -7 -6 -6 -6 -6 -6 -6 -6 -5 -5 -5 -4 -4 -4 -4 -4 -4 -4 -3 -3 -3 -2 -1 ------------ Run | Scr Mat Min Mat Sto Gar Rec Fac Gar Fac Gar Fac Was Fac Low Low Zio Dee Pro Fac Gar Fac Was Fac Ext Cet Arc Hub Res Arm Lab Res Acc Used RIF Installer 4 | . . . . . 1 . . 1 . 1 . . . . . . . . . 1 . . . . . . . . . . . . Threat Obfuscator 1 | . . . . . . . . 1 . . . . . . . . . . . . . . . . . . . . . . . . Structural Interface 1 | . . . . . . . . . . . . . . . . . . . . 1 . . . . . . . . . . . . Program Shield 1 | . . . . . . . . . . 1 . . . . . . . . . . . . . . . . . . . . . . Robots Hacked 35 | . . . . . . . . 1 5 6 2 6 3 . . . . . 6 4 1 . . . . . . . . . 1 . Non-combat 11 | . . . . . . . . . . . 1 . 2 . . . . . 6 . 1 . . . . . . . . . 1 . Combat 24 | . . . . . . . . 1 5 6 1 6 1 . . . . . . 4 . . . . . . . . . . . . Robot Hacks Applied 42 | . . . . . . . . 1 5 6 2 7 4 . . . . . 8 5 1 . . . . . . . . . 3 . parse_system 5 | . . . . . . . . . . . . . . . . . . . 2 3 . . . . . . . . . . . . no_distress 2 | . . . . . . . . . . . . . . . . . . . 2 . . . . . . . . . . . . . find_chute 4 | . . . . . . . . . . . 1 . . . . . . . 2 . 1 . . . . . . . . . . . find_recycling 1 | . . . . . . . . . . . . . . . . . . . 1 . . . . . . . . . . . . . find_station 1 | . . . . . . . . . . . . . . . . . . . 1 . . . . . . . . . . . . . purge_threat 3 | . . . . . . . . . . . . . 1 . . . . . . . . . . . . . . . . . 2 . locate_traps 1 | . . . . . . . . . . . . . . . . . . . . . . . . . . . . . . . 1 . disarm_traps 1 | . . . . . . . . . . . . . 1 . . . . . . . . . . . . . . . . . . . ignore_targets 7 | . . . . . . . . . . . . 7 . . . . . . . . . . . . . . . . . . . . overload_power 5 | . . . . . . . . . . 5 . . . . . . . . . . . . . . . . . . . . . . disable_weapons 2 | . . . . . . . . . . . . . . . . . . . . 2 . . . . . . . . . . . . streamctrl_high 1 | . . . . . . . . . 1 . . . . . . . . . . . . . . . . . . . . . . . formatsys_high 9 | . . . . . . . . 1 4 1 1 . 2 . . . . . . . . . . . . . . . . . . . Relay Couplers Released 50 | . . . . . . . 4 10 . 4 . . . . . . . . . 18 . . 2 . . . . 2 . . 7 3 Machine Destruction 39 | . . . . . . . . 10 . 4 . . . . . . . . . 18 . . 2 . . . . 2 . . . 3 Programmers 11 | . . . . . . . 4 . . . . . . . . . . . . . . . . . . . . . . . 7 . Attached 20 | . . . . . . . . 4 2 2 . 1 2 . . . . . 1 7 . . . . . . . . . . 1 . Fabnet Peak Effective % . | . . . . . . . . . . . . . . . . . . . . . . . . . . . . . . . . . Robots Rewired 28 | . . . . . . . . . . . . . . . . . . . . 10 . . . 13 . 1 . . 4 . . . Allies Hacked 5 | . . . . . . . . . . . . . . . . . . . 1 . 2 . . 1 . . . . 1 . . . Hacks Repelled . | . . . . . . . . . . . . . . . . . . . . . . . . . . . . . . . . . Allies | -11 -10 -10 -9 -9 -9 -9 -7 -7 -7 -7 -6 -6 -6 -6 -6 -6 -6 -5 -5 -5 -4 -4 -4 -4 -4 -4 -4 -3 -3 -3 -2 -1 -------- Run | Scr Mat Min Mat Sto Gar Rec Fac Gar Fac Gar Fac Was Fac Low Low Zio Dee Pro Fac Gar Fac Was Fac Ext Cet Arc Hub Res Arm Lab Res Acc Total Allies 67 | . . . . 12 . . . 1 5 1 1 . 2 . . . . . 1 10 . . . 24 5 1 . . 4 . . . Largest Group 13 | . . . . 12 2 . . 1 3 1 1 1 1 . . . . . 1 10 10 . . 13 6 5 4 . 2 . . . Highest-Rated Group 639 | . . . . 150 62 . . 21 166 90 29 29 41 . . . . . 10 523 523 . . 580 639 543 384 . 98 . . . Highest-Rated Ally 159 | . . . . 31 31 . . 21 90 90 29 29 41 . . . . . 10 68 68 . . 159 159 159 96 . 56 . . . Total Orders 5 | . . . . . . . . . . . . . . . . . . . . . . . . . . . . . . . . 5 EXPLORE 4 | . . . . . . . . . . . . . . . . . . . . . . . . . . . . . . . . 4 RETURN 1 | . . . . . . . . . . . . . . . . . . . . . . . . . . . . . . . . 1 Ally Attacks 494 | . . . . 143 2 . . 8 14 16 1 25 5 . . . . . . . 66 . . 124 25 19 39 . 7 . . . Total Damage 14324 | . . . . 1780 21 . . 116 587 243 . 379 170 . . . . . . . 3008 . . 3672 712 679 2572 . 385 . . . Kills 92 | . . . . 25 . . . 2 4 3 . 1 1 . . . . . . . 18 . . 18 5 3 12 . . . . . Allies Corrupted 4 | . . . . . . . . . . . . 1 . . . . . . . . . . . 1 . . 1 . 1 . . . Allies Melted 2 | . . . . . . . . . . . . . . . . . . . . . . . . 1 . . . 1 . . . . Intel | -11 -10 -10 -9 -9 -9 -9 -7 -7 -7 -7 -6 -6 -6 -6 -6 -6 -6 -5 -5 -5 -4 -4 -4 -4 -4 -4 -4 -3 -3 -3 -2 -1 ------- Run | Scr Mat Min Mat Sto Gar Rec Fac Gar Fac Gar Fac Was Fac Low Low Zio Dee Pro Fac Gar Fac Was Fac Ext Cet Arc Hub Res Arm Lab Res Acc Robot Analysis Total 4 | . . . . . . 4 . . . . . . . . . . . . . . . . . . . . . . . . . . Derelict Logs Recovered 8 | . . 2 . . . . . . . . . . . 1 2 . . 3 . . . . . . . . . . . . . . Drone Launches 5 | . . . . . . . . . . . . . . . . . . . . . . . . . . . . . . . . 5 Drone Recoveries 4 | . . . . . . . . . . . . . . . . . . . . . . . . . . . . . . . . 4 Exploration | -11 -10 -10 -9 -9 -9 -9 -7 -7 -7 -7 -6 -6 -6 -6 -6 -6 -6 -5 -5 -5 -4 -4 -4 -4 -4 -4 -4 -3 -3 -3 -2 -1 ------------- Run | Scr Mat Min Mat Sto Gar Rec Fac Gar Fac Gar Fac Was Fac Low Low Zio Dee Pro Fac Gar Fac Was Fac Ext Cet Arc Hub Res Arm Lab Res Acc Turns Passed 71176 | 464 2468 2128 2755 2500 330 1795 3063 980 610 876 1230 1133 2168 1792 1220 12840 2246 4013 4007 5171 895 526 1311 2535 335 946 651 3196 1002 671 4190 1129 Spaces Moved 20609 | 233 628 610 796 777 130 727 971 418 343 369 434 270 634 675 467 1908 695 1354 1513 1317 296 125 354 629 115 175 197 1004 360 86 1412 587 Core 368 | 3 . . 1 . . . . . . . . . . . . 265 . . . . . . . . . . . . . . . 99 Treads 8607 | 230 628 583 795 777 130 727 971 258 . . . . 299 675 190 1095 695 210 . . 4 76 . . 85 137 . 42 . . . . Legs 8383 | . . . . . . . . . . . . . . . . . . 1144 1513 1317 292 49 354 629 30 38 197 962 360 86 1412 . Wheels 3251 | . . 27 . . . . . 160 343 369 434 270 335 . 277 548 . . . . . . . . . . . . . . . 488 Hover . | . . . . . . . . . . . . . . . . . . . . . . . . . . . . . . . . . Flight . | . . . . . . . . . . . . . . . . . . . . . . . . . . . . . . . . . Fastest Speed 50 | 50 160 175 240 240 240 240 230 135 135 150 240 255 240 245 245 230 240 210 210 210 210 240 240 210 210 240 210 125 175 190 187 50 Average Speed 252 | 158 289 313 248 240 240 240 236 193 146 200 254 293 280 247 245 455 252 230 225 234 241 304 287 227 232 246 270 203 187 190 198 117 Slowest Speed 1750 | 160 320 320 1750 240 240 240 312 230 150 225 255 300 320 320 245 1750 323 405 240 240 410 640 300 270 240 270 300 270 190 260 260 150 Overloaded Moves . | . . . . . . . . . . . . . . . . . . . . . . . . . . . . . . . . . Propulsion Burnouts . | . . . . . . . . . . . . . . . . . . . . . . . . . . . . . . . . . Robots Hopped . | . . . . . . . . . . . . . . . . . . . . . . . . . . . . . . . . . Cave-ins Triggered 3 | . . . . . . . . . . . . . . . . . . . . . . 1 . . . . . 1 . . 1 . Exploration Rate (%) 52 | 11 93 99 78 88 34 98 30 55 13 39 12 83 20 64 64 86 60 92 44 90 10 91 12 57 65 93 33 18 32 7 38 22 Regions Visited 32 Branch Regions 14 Pre-discovered Areas 12 | . 2 2 . . . 6 . . . . . . . 1 . . . 1 . . . . . . . . . . . . . . Known Exits Taken 11 | . . . 1 1 . . 1 . 1 . . . 1 1 1 . . . 1 . . . 1 . . . 1 . . . 1 . Unknown Exits Taken 13 | 1 1 1 . . . 1 . . . . . . . . . 1 1 1 . . . . . 1 1 1 . 1 1 1 . . Scrap Searched 15 | . . 1 . . . . . . . . . . . 2 4 4 . 4 . . . . . . . . . . . . . . Spaces Dug 581 | . . 4 28 19 17 . 9 42 . . . 5 23 13 . 50 . 6 53 15 3 3 19 10 . . 3 46 22 9 170 12 Terrain Destroyed 2561 | . . 4 137 53 17 . 53 84 77 19 32 11 71 178 59 224 66 23 151 52 10 10 76 47 9 1 172 103 186 12 595 29 Melee 3 | . . . . . . . 2 . . . . . 1 . . . . . . . . . . . . . . . . . . . Projectile 953 | . . . 1 . . . 7 . . 2 1 11 4 17 4 183 4 23 96 52 10 10 76 47 9 1 20 92 47 12 195 29 AOE 1605 | . . 4 136 53 17 . 44 84 77 17 31 . 66 161 55 41 62 . 55 . . . . . . . 152 11 139 . 400 . Terrain Rammed 1 | . . . . . . . . . . . . . . . . . . . . . . . . . . . . . . 1 . . Walls Destroyed . | . . . . . . . . . . . . . . . . . . . . . . . . . . . . . . . . . Machines Disabled . | . . . . . . . . . . . . . . . . . . . . . . . . . . . . . . . . . Actions | -11 -10 -10 -9 -9 -9 -9 -7 -7 -7 -7 -6 -6 -6 -6 -6 -6 -6 -5 -5 -5 -4 -4 -4 -4 -4 -4 -4 -3 -3 -3 -2 -1 --------- Run | Scr Mat Min Mat Sto Gar Rec Fac Gar Fac Gar Fac Was Fac Low Low Zio Dee Pro Fac Gar Fac Was Fac Ext Cet Arc Hub Res Arm Lab Res Acc Total 34000 | 277 1071 800 1357 1161 139 751 1433 522 410 469 497 465 828 739 509 4188 1126 2204 1912 3228 413 215 484 1631 152 684 253 1888 530 571 2278 815 Wait 6942 | . 249 165 298 159 . . 180 2 9 23 10 3 41 6 7 153 278 800 140 1659 25 26 26 740 13 495 7 600 10 449 341 28 Move 20581 | 232 627 609 795 777 129 726 971 417 343 368 434 269 633 674 466 1907 694 1353 1512 1316 296 124 353 628 114 174 196 1002 359 85 1411 587 Hop . | . . . . . . . . . . . . . . . . . . . . . . . . . . . . . . . . . Pick Up 336 | 11 40 4 25 14 1 . 27 14 7 9 3 5 7 5 2 19 14 2 11 15 5 1 . 13 2 . 2 25 6 . 37 10 Fast Attach 253 | 6 4 . 8 6 . 1 14 7 7 3 3 6 8 2 6 32 9 3 25 10 10 8 11 5 2 1 8 22 6 1 12 7 Attach 163 | 1 7 1 9 2 . . 15 11 1 2 2 1 3 4 3 13 11 . 3 11 4 3 . 2 . . 2 10 1 4 20 17 Detach 79 | . . . . . . . . 4 . . . 1 . . . 7 1 1 7 9 3 2 . . . 1 1 3 6 3 21 9 Swap 343 | . 4 3 30 35 2 . 34 5 10 12 6 7 21 9 4 8 15 2 7 8 4 3 . 9 1 1 . 18 15 . 58 12 Drop 555 | 2 19 3 33 30 1 1 26 2 9 14 4 17 12 3 4 39 26 12 51 36 15 6 11 27 5 6 7 49 15 10 46 14 Fire 4419 | 25 113 10 154 124 6 1 158 30 23 28 33 156 94 34 17 2010 76 30 154 120 50 42 83 57 15 4 30 158 106 18 332 128 Melee 34 | . . . . . . . 2 14 . 2 . . 1 2 . . . . . 12 1 . . . . . . . . . . . Ram 8 | . . . . . . . . . 1 . 2 . 1 . . . . . . . . . . . . . . . . 1 . 3 Kick 5 | . . . . . . . . . . . . . . . . . . . 2 2 . . . . . . . . 1 . . . Crush 59 | . 8 5 5 10 . 18 6 . . . . . 7 . . . . . . . . . . . . . . . . . . . Escape Stasis 69 | . . . . 4 . . . 16 . 8 . . . . . . . . . 30 . . . 5 . . . 1 5 . . . Rewire 154 | . . . . . . 4 . . . . . . . . . . 2 1 . . . . . 145 . 2 . . . . . . Trap . | . . . . . . . . . . . . . . . . . . . . . . . . . . . . . . . . . Miscellaneous . | . . . . . . . . . . . . . . . . . . . . . . . . . . . . . . . . . Route ------- -11/Scrapyard -10/Materials (discovered 5 exits: *Mat x3 / [*Min x2]) -10/Mines (discovered 3 exits: *Mat x2 / [*Exi]) -9/Materials (discovered 6 exits: [*Mat x2] / *Min x2 / *Sto x2) -9/Storage (discovered 2 exits: [*Mat] / Gar) -9/Garrison -9/Recycling -7/Factory (discovered 6 exits: *Fac x3 / *Low x2 / Gar) -7/Garrison -7/Factory (discovered 2 exits: *Fac / Gar) -7/Garrison -6/Factory (discovered 2 exits: Low x2) -6/Waste -6/Factory (discovered 2 exits: *Low x2) -6/Lower Caves -6/Lower Caves (discovered 2 exits: *Fac / *Zio) -6/Zion (discovered 2 exits: [*Dee] / [*Pro]) -6/Deep Caves -5/Proximity Caves -5/Factory (discovered 5 exits: *Fac x2 / *Upp x2 / Gar) -5/Garrison (discovered 3 exits: *Fac x3) -4/Factory -4/Waste -4/Factory (discovered 5 exits: *Res / Upp x2 / *Ext x2) -4/Extension (discovered 2 exits: *Res / *Cet) -4/Cetus -4/Archives (discovered 3 exits: *Res / *Hub x2) -4/Hub_04(d) -3/Research -3/Armory -3/Lab -2/Research (discovered 2 exits: *Acc x2) -1/Access History --------- Turn | Location | Event 4 | -11/Scrapyard | Discovered new exit (range 16) 465 | -11/Scrapyard | Entered Materials 466 | -10/Materials | Build established: Mutant 573 | -10/Materials | Discovered new exit (range 7) 596 | -10/Materials | Central database locked down 820 | -10/Materials | Discovered new exit (range 13) 1405 | -10/Materials | Discovered new exit (range 14) 1833 | -10/Materials | Repaired Lgt. Treads 1860 | -10/Materials | Repaired Lgt. Treads 2002 | -10/Materials | Discovered new exit (range 15) 2823 | -10/Materials | Discovered new exit (range 13) 2933 | -10/Materials | Entered Mines 2934 | -10/Mines | Assembled infested the area 2939 | -10/Mines | Assisted by a Guerilla fighting off Assembled 3272 | -10/Mines | Learned 2 Materials zone layouts 3335 | -10/Mines | Discovered new exit (range 5) 3647 | -10/Mines | Found a damaged Exp. Sensor Array with a note attached 3654 | -10/Mines | Found Prototype Device 4176 | -10/Mines | Received a Rocket Launcher from a helpful Derelict 4230 | -10/Mines | Learned location of Storage (-9) 4350 | -10/Mines | Learned location of Mines (-9) 4389 | -10/Mines | Discovered new exit (range 6) 4632 | -10/Mines | Deemed a non-threat by the Exiles lab entrance 4632 | -10/Mines | Discovered new exit (range 5) 5061 | -10/Mines | Entered Materials 5061 | -9/Materials | Evolved 2 slots: Propulsion x1, Utility x1 5062 | -9/Materials | Identified exit to Mines 5602 | -9/Materials | Discovered exit to Mines (range 14) 5651 | -9/Materials | Destroyed 8 combat bots 5744 | -9/Materials | Build established: Scavenger-Mutant 5922 | -9/Materials | Discovered new exit (range 13) 5934 | -9/Materials | Discovered new exit (range 5) 6261 | -9/Materials | First assault squad dispatched 6533 | -9/Materials | Discovered new exit (range 13) 7145 | -9/Materials | Identified Exp. Sensor Array 7295 | -9/Materials | Build established: Mutant 7398 | -9/Materials | Discovered new exit (range 7) 7549 | -9/Materials | Identified exit to Storage 7816 | -9/Materials | Entered Storage 7915 | -9/Storage | Build established: Scavenger-Mutant 8212 | -9/Storage | Repaired Faulty Exp. Sensor Array 8955 | -9/Storage | Core integrity fell below 50% 8958 | -9/Storage | Garrison activated, responded to threat 9378 | -9/Storage | Assisted by bots powering up and referring to "LRC-V3" 9457 | -9/Storage | Met a pair of Derelict thieves 9499 | -9/Storage | Garrison activated, responded to threat 9536 | -9/Storage | Discovered new exit (range 15) 9938 | -9/Storage | Build established: Mutant 9984 | -9/Storage | Garrison activated, responded to threat 10216 | -9/Storage | First assault squad dispatched 10245 | -9/Storage | Garrison activated, responded to threat 10312 | -9/Storage | Identified exit to Garrison 10316 | -9/Storage | Entered Garrison 10316 | -9/Garrison | Accompanied by 2 allies 10474 | -9/Garrison | Triggered checkpoint 10602 | -9/Garrison | Discovered new exit (range 10) 10636 | -9/Garrison | Installed Relay Interface Framework 10646 | -9/Garrison | Entered Recycling 10701 | -9/Recycling | Spotter reported a threat 10702 | -9/Recycling | Spotter reported a threat 10760 | -9/Recycling | Spotter reported a threat 10765 | -9/Recycling | Spotter reported a threat 10782 | -9/Recycling | Spotter reported a threat 10799 | -9/Recycling | Spotter reported a threat 10812 | -9/Recycling | Spotter reported a threat 10826 | -9/Recycling | Spotter reported a threat 10836 | -9/Recycling | Spotter reported a threat 10841 | -9/Recycling | Spotter reported a threat 10865 | -9/Recycling | Spotter reported a threat 10879 | -9/Recycling | Spotter reported a threat 10900 | -9/Recycling | Spotter reported a threat 10901 | -9/Recycling | Spotter reported a threat 10908 | -9/Recycling | Spotter reported a threat 10918 | -9/Recycling | Spotter reported a threat 10943 | -9/Recycling | Spotter reported a threat 10948 | -9/Recycling | Spotter reported a threat 10961 | -9/Recycling | Spotter reported a threat 10998 | -9/Recycling | Spotter reported a threat 11131 | -9/Recycling | Spotter reported a threat 11131 | -9/Recycling | Spotter reported a threat 11174 | -9/Recycling | Spotter reported a threat 11184 | -9/Recycling | Spotter reported a threat 11188 | -9/Recycling | Spotter reported a threat 11212 | -9/Recycling | Spotter reported a threat 11212 | -9/Recycling | Spotter reported a threat 11223 | -9/Recycling | Spotter reported a threat 11227 | -9/Recycling | Spotter reported a threat 11237 | -9/Recycling | Spotter reported a threat 11246 | -9/Recycling | Spotter reported a threat 11265 | -9/Recycling | Spotter reported a threat 11276 | -9/Recycling | Spotter reported a threat 11290 | -9/Recycling | Spotter reported a threat 11347 | -9/Recycling | Spotter reported a threat 11351 | -9/Recycling | Spotter reported a threat 11362 | -9/Recycling | Spotter reported a threat 11362 | -9/Recycling | Spotter reported a threat 11381 | -9/Recycling | Spotter reported a threat 11437 | -9/Recycling | Spotter reported a threat 11461 | -9/Recycling | Spotter reported a threat 11482 | -9/Recycling | Spotter reported a threat 11490 | -9/Recycling | Spotter reported a threat 11492 | -9/Recycling | Spotter reported a threat 11492 | -9/Recycling | Spotter reported a threat 11519 | -9/Recycling | Spotter reported a threat 11534 | -9/Recycling | Discovered new exit (range 11) 11535 | -9/Recycling | Spotter reported a threat 11543 | -9/Recycling | Spotter reported a threat 11545 | -9/Recycling | Spotter reported a threat 11545 | -9/Recycling | Spotter reported a threat 11587 | -9/Recycling | Spotter reported a threat 11598 | -9/Recycling | Spotter reported a threat 11605 | -9/Recycling | Spotter reported a threat 11613 | -9/Recycling | Spotter reported a threat 11623 | -9/Recycling | Spotter reported a threat 11640 | -9/Recycling | Spotter reported a threat 11678 | -9/Recycling | Spotter reported a threat 11679 | -9/Recycling | Spotter reported a threat 11712 | -9/Recycling | Spotter reported a threat 11729 | -9/Recycling | Spotter reported a threat 11731 | -9/Recycling | Spotter reported a threat 11732 | -9/Recycling | Spotter reported a threat 11749 | -9/Recycling | Spotter reported a threat 11765 | -9/Recycling | Spotter reported a threat 11798 | -9/Recycling | Spotter reported a threat 11819 | -9/Recycling | Spotter reported a threat 11819 | -9/Recycling | Spotter reported a threat 11819 | -9/Recycling | Spotter reported a threat 11872 | -9/Recycling | Spotter reported a threat 11877 | -9/Recycling | Spotter reported a threat 11898 | -9/Recycling | Spotter reported a threat 11899 | -9/Recycling | Spotter reported a threat 11914 | -9/Recycling | Spotter reported a threat 11925 | -9/Recycling | Spotter reported a threat 11957 | -9/Recycling | Spotter reported a threat 11960 | -9/Recycling | Spotter reported a threat 11960 | -9/Recycling | Spotter reported a threat 12021 | -9/Recycling | Spotter reported a threat 12022 | -9/Recycling | Spotter reported a threat 12032 | -9/Recycling | Spotter reported a threat 12081 | -9/Recycling | Spotter reported a threat 12081 | -9/Recycling | Spotter reported a threat 12085 | -9/Recycling | Spotter reported a threat 12121 | -9/Recycling | Spotter reported a threat 12134 | -9/Recycling | Spotter reported a threat 12136 | -9/Recycling | Spotter reported a threat 12153 | -9/Recycling | Spotter reported a threat 12174 | -9/Recycling | Spotter reported a threat 12182 | -9/Recycling | Spotter reported a threat 12189 | -9/Recycling | Spotter reported a threat 12206 | -9/Recycling | Spotter reported a threat 12224 | -9/Recycling | Spotter reported a threat 12227 | -9/Recycling | Spotter reported a threat 12252 | -9/Recycling | Spotter reported a threat 12259 | -9/Recycling | Spotter reported a threat 12268 | -9/Recycling | Spotter reported a threat 12280 | -9/Recycling | Spotter reported a threat 12333 | -9/Recycling | Spotter reported a threat 12339 | -9/Recycling | Spotter reported a threat 12392 | -9/Recycling | Spotter reported a threat 12397 | -9/Recycling | Spotter reported a threat 12400 | -9/Recycling | Spotter reported a threat 12406 | -9/Recycling | Spotter reported a threat 12441 | -9/Recycling | Entered Factory 12441 | -7/Factory | Evolved 4 slots: Utility x4 12746 | -7/Factory | Build established: Scavenger-Mutant 12841 | -7/Factory | Search patrols dispatched 13209 | -7/Factory | Discovered new exit (range 16) 13241 | -7/Factory | Search patrols dispatched 13244 | -7/Factory | Found Prototype Launcher 13244 | -7/Factory | Identified Rocket Array 13451 | -7/Factory | Garrison activated, responded to threat 13510 | -7/Factory | Identified exit to Lower Caves 13641 | -7/Factory | Search patrols dispatched 13829 | -7/Factory | Build established: Mutant 13982 | -7/Factory | Lost 3 parts (1n1u1w) 15015 | -7/Factory | Discovered new exit (range 6) 15208 | -7/Factory | Discovered new exit (range 15) 15269 | -7/Factory | First assault squad dispatched 15440 | -7/Factory | Garrison activated, responded to threat 15500 | -7/Factory | Destroyed 9 combat bots 15504 | -7/Factory | Identified exit to Garrison 15504 | -7/Factory | Entered Garrison 15508 | -7/Garrison | Lost 5 parts (1p2n1u1w) 15516 | -7/Garrison | Expanded RIF knowledge: Threat Obfuscation 15610 | -7/Garrison | Triggered checkpoint 15646 | -7/Garrison | Core integrity fell below 50% 15690 | -7/Garrison | Lost 6 parts (4u2w) 15744 | -7/Garrison | Triggered checkpoint 15784 | -7/Garrison | Garrison Relay disabled 16063 | -7/Garrison | Build established: Bothacker-Mutant 16143 | -7/Garrison | Discovered new exit (range 8) 16226 | -7/Garrison | Triggered checkpoint 16311 | -7/Garrison | Garrison Relay disabled 16484 | -7/Garrison | Entered Factory 17037 | -7/Factory | Discovered new exit (range 10) 17087 | -7/Factory | Identified exit to Garrison 17094 | -7/Factory | Entered Garrison 17094 | -7/Garrison | Accompanied by 1 ally 17102 | -7/Garrison | Expanded RIF knowledge: Program Shield 17151 | -7/Garrison | Triggered checkpoint 17192 | -7/Garrison | Garrison Relay disabled 17348 | -7/Garrison | Triggered checkpoint 17391 | -7/Garrison | Triggered checkpoint 17516 | -7/Garrison | Discovered new exit (range 14) 17655 | -7/Garrison | Core integrity fell below 20% 17785 | -7/Garrison | Found Prototype Device 17970 | -7/Garrison | Entered Factory 17970 | -6/Factory | Evolved 2 slots: Power x1, Utility x1 18029 | -6/Factory | Identified exit to Lower Caves 18320 | -6/Factory | First assault squad dispatched 18926 | -6/Factory | Found Rocket Array 19200 | -6/Factory | Sucked down chute 19200 | -6/Factory | Entered Waste 19205 | -6/Waste | 1 allies followed down the chute 19215 | -6/Waste | EMP discharged 19215 | -6/Waste | System corruption reached 10% 19221 | -6/Waste | Spotted C-40 Crusher 19228 | -6/Waste | Spotted C-40 Crusher 19242 | -6/Waste | Allies destroyed C-40 Crusher 19259 | -6/Waste | Spotted C-40 Crusher 19271 | -6/Waste | Found Damper Plating 19282 | -6/Waste | Spotted C-40 Crusher 19282 | -6/Waste | Spotted C-40 Crusher 19293 | -6/Waste | Found Damper Plating 19315 | -6/Waste | EMP discharged 19352 | -6/Waste | Spotted C-40 Crusher 19397 | -6/Waste | Destroyed C-40 Crusher 19415 | -6/Waste | EMP discharged 19515 | -6/Waste | EMP discharged 19577 | -6/Waste | Destroyed C-40 Crusher 19615 | -6/Waste | EMP discharged 19636 | -6/Waste | Destroyed C-40 Crusher 19654 | -6/Waste | Found Damper Plating 19715 | -6/Waste | EMP discharged 19719 | -6/Waste | Destroyed C-40 Crusher 19815 | -6/Waste | EMP discharged 19830 | -6/Waste | Discovered new exit (range 16) 19878 | -6/Waste | Destroyed C-40 Crusher 19883 | -6/Waste | Build established: Scavenger-Mutant 19915 | -6/Waste | EMP discharged 20015 | -6/Waste | EMP discharged 20115 | -6/Waste | EMP discharged 20215 | -6/Waste | EMP discharged 20315 | -6/Waste | EMP discharged 20333 | -6/Waste | Entered Factory 20599 | -6/Factory | Build established: Bothacker-Mutant 22053 | -6/Factory | Build established: Scavenger-Mutant 22372 | -6/Factory | P-60 Hacker assimilated allied Slayer 5a 22494 | -6/Factory | Cargo convoy interrupted 22501 | -6/Factory | Entered Lower Caves 22679 | -6/Lower Caves | Identified Active Sensor Suite 22966 | -6/Lower Caves | Build established: Scavenger-Assassin 23002 | -6/Lower Caves | Learned Research trap positions 23629 | -6/Lower Caves | Attracted the attention of an 0b10 checkpoint 23742 | -6/Lower Caves | Learned location of Zion (-6) 23952 | -6/Lower Caves | Discovered new exit (range 6) 23966 | -6/Lower Caves | Identified exit to Lower Caves 24175 | -6/Lower Caves | Build established: Scavenger-Mutant 24293 | -6/Lower Caves | Entered another Lower Caves area 24295 | -6/Lower Caves | Discovered new exit (range 15) 24857 | -6/Lower Caves | Lost 3 parts (1p1n1u) 24984 | -6/Lower Caves | Learned Factory non-interactive machine intel 25066 | -6/Lower Caves | Build established: Scavenger-Skirmisher 25123 | -6/Lower Caves | Spotted B-75 Beast 25354 | -6/Lower Caves | Discovered new exit (range 7) 25510 | -6/Lower Caves | Identified exit to Zion 25513 | -6/Lower Caves | Entered Zion 25604 | -6/Zion | System corruption cleaned by Quarantine Array 25666 | -6/Zion | Found CR-A16's Pointy Stick 25798 | -6/Zion | Discovered new exit (range 14) 25820 | -6/Zion | Build established: Scavenger-Mutant 30750 | -6/Zion | RIF detected upon attempting to enter Zion 30750 | -6/Zion | Attacked by Zionites 30891 | -6/Zion | Spotted YL-QQ8(B) 30891 | -6/Zion | Spotted U0-3Q9(B) 30912 | -6/Zion | Destroyed U0-3Q9(B) 30921 | -6/Zion | Destroyed YL-QQ8(B) 31407 | -6/Zion | Destroyed Imprinter 31423 | -6/Zion | Extracted access codes from Imprinter's data core 37485 | -6/Zion | Opened final containment barrier to the Deep Caves 37529 | -6/Zion | Discovered new exit (range 3) 37529 | -6/Zion | Saw the warning signs outside the Deep Caves entrance 38353 | -6/Zion | Entered Deep Caves 38716 | -6/Deep Caves | Z-Facility disabled 38757 | -6/Deep Caves | Lost 4 parts (1p1n2w) 38846 | -6/Deep Caves | Found Prototype Protection 38846 | -6/Deep Caves | Identified Zio. Heavy Carapace 38891 | -6/Deep Caves | Found Prototype Protection 38900 | -6/Deep Caves | Identified Zio. Weapon Casing 39078 | -6/Deep Caves | Found Zio. Weapon Casing 39258 | -6/Deep Caves | Discovered new exit (range 6) 39369 | -6/Deep Caves | Spotted as-43025 39371 | -6/Deep Caves | Core integrity fell below 50% 39402 | -6/Deep Caves | Destroyed as-43025 39619 | -6/Deep Caves | Triggered Deep Caves wall 39619 | -6/Deep Caves | Spotted AS-54578 39620 | -6/Deep Caves | Spotted AS-38263 39635 | -6/Deep Caves | Destroyed AS-38263 39650 | -6/Deep Caves | Destroyed AS-54578 39658 | -6/Deep Caves | Destroyed 38 combat bots 39882 | -6/Deep Caves | Exposed GOLEM chamber 39906 | -6/Deep Caves | Found GOLEM Unit 39934 | -6/Deep Caves | Found GOLEM Unit 39959 | -6/Deep Caves | Found GOLEM Unit 39994 | -6/Deep Caves | Found GOLEM Unit 40274 | -6/Deep Caves | Found GOLEM Unit 40315 | -6/Deep Caves | Build established: Scavenger-Golem 40378 | -6/Deep Caves | Found GOLEM Unit 40599 | -6/Deep Caves | Entered Proximity Caves 42248 | -5/Proximity Caves | Learned Factory non-interactive machine intel 42943 | -5/Proximity Caves | Learned Factory emergency access door positions 43150 | -5/Proximity Caves | Discovered new exit (range 10) 43677 | -5/Proximity Caves | Spotted B-75 Beast 44612 | -5/Proximity Caves | Entered Factory 44612 | -5/Factory | Evolved 2 slots: Utility x1, Weapon x1 44614 | -5/Factory | Loaded intel: 269 non-interactive machine locations 45077 | -5/Factory | Build established: Golem 45366 | -5/Factory | Identified exit to Upper Caves 45441 | -5/Factory | Build established: Mutant 45793 | -5/Factory | Build established: Golem 46010 | -5/Factory | Repaired HERF Cannon 47912 | -5/Factory | First assault squad dispatched 48283 | -5/Factory | Discovered new exit (range 15) 48396 | -5/Factory | Discovered new exit (range 16) 48591 | -5/Factory | Identified exit to Garrison 48619 | -5/Factory | Entered Garrison 49177 | -5/Garrison | Spotted B-75 Beast 49256 | -5/Garrison | Lost 3 parts (3u) 49311 | -5/Garrison | Destroyed B-75 Beast 50042 | -5/Garrison | Triggered checkpoint 50184 | -5/Garrison | Triggered checkpoint 50233 | -5/Garrison | Garrison Relay disabled 50412 | -5/Garrison | Spotted B-75 Beast 50418 | -5/Garrison | Triggered checkpoint 50543 | -5/Garrison | Build established: Tank 50805 | -5/Garrison | Destroyed 8 combat bots 50818 | -5/Garrison | Lost 4 parts (1n1u2w) 50902 | -5/Garrison | Core integrity fell below 50% 50971 | -5/Garrison | Revealed the true nature of CR-A16's Pointy Stick 50979 | -5/Garrison | Destroyed B-75 Beast 51289 | -5/Garrison | Build established: Golem 51629 | -5/Garrison | Discovered new exit (range 8) 51658 | -5/Garrison | Expanded RIF knowledge: Structural Interface 51715 | -5/Garrison | Garrison Relay disabled 51750 | -5/Garrison | Triggered checkpoint 51966 | -5/Garrison | Discovered new exit (range 11) 51982 | -5/Garrison | Triggered checkpoint 52139 | -5/Garrison | Garrison Relay disabled 52346 | -5/Garrison | Triggered checkpoint 52587 | -5/Garrison | Discovered new exit (range 14) 52660 | -5/Garrison | Triggered checkpoint 52724 | -5/Garrison | Garrison Relay disabled 52978 | -5/Garrison | Found Quantum Capacitor 53017 | -5/Garrison | Build established: Mutant 53411 | -5/Garrison | Build established: Commander-Mutant 53749 | -5/Garrison | Build established: Commander-Golem 53790 | -5/Garrison | Entered Factory 53790 | -4/Factory | Accompanied by 10 allies 53790 | -4/Factory | Evolved 2 slots: Power x2 53791 | -4/Factory | Loaded intel: 253 non-interactive machine locations 53943 | -4/Factory | Spotted B-86 Titan 53950 | -4/Factory | Destroyed B-86 Titan 53961 | -4/Factory | Found Unknown Protection 53961 | -4/Factory | Identified Hvy. Reflective Plating 54337 | -4/Factory | Build established: Commander-Mutant 54396 | -4/Factory | Garrison activated, responded to threat 54628 | -4/Factory | Lost 10 parts (1p1n5u3w) 54685 | -4/Factory | Sucked down chute 54685 | -4/Factory | Entered Waste 54700 | -4/Waste | EMP discharged 54710 | -4/Waste | Spotted C-40 Crusher 54737 | -4/Waste | Spotted C-40 Crusher 54741 | -4/Waste | Destroyed C-40 Crusher 54747 | -4/Waste | Crushed by falling debris 54747 | -4/Waste | Crushed by Compactor (1 part destroyed, 1 dropped) 54749 | -4/Waste | Destroyed C-40 Crusher 54758 | -4/Waste | Spotted C-40 Crusher 54767 | -4/Waste | Destroyed C-40 Crusher 54774 | -4/Waste | Found Damper Plating 54800 | -4/Waste | EMP discharged 54870 | -4/Waste | Spotted C-40 Crusher 54875 | -4/Waste | Crushed by Compactor (0 parts destroyed, 1 dropped) 54881 | -4/Waste | Crushed by Compactor (1 part destroyed, 2 dropped) 54887 | -4/Waste | Crushed by Compactor (1 part destroyed) 54897 | -4/Waste | Destroyed C-40 Crusher 54900 | -4/Waste | EMP discharged 54944 | -4/Waste | Spotted C-40 Crusher 54965 | -4/Waste | Crushed by Compactor (0 parts destroyed, 1 dropped) 54968 | -4/Waste | Destroyed C-40 Crusher 55000 | -4/Waste | EMP discharged 55073 | -4/Waste | Spotted C-40 Crusher 55089 | -4/Waste | Destroyed C-40 Crusher 55098 | -4/Waste | Found Damper Plating 55100 | -4/Waste | EMP discharged 55119 | -4/Waste | Build established: Generator-Golem 55186 | -4/Waste | Discovered new exit (range 10) 55200 | -4/Waste | EMP discharged 55211 | -4/Waste | Entered Factory 55805 | -4/Factory | Discovered new exit (range 6) 55970 | -4/Factory | Identified exit to Upper Caves 55970 | -4/Factory | Identified exit to Extension 56296 | -4/Factory | Garrison activated, responded to threat 56522 | -4/Factory | Entered Extension 56640 | -4/Extension | Core integrity fell below 50% 57267 | -4/Extension | Rescued a captive Derelict 57268 | -4/Extension | Rescued a captive Derelict 57488 | -4/Extension | Rescued a captive Derelict 57822 | -4/Extension | Disrupted transfer network 57903 | -4/Extension | Rescued a captive Derelict 58239 | -4/Extension | Rescued a captive Derelict 58240 | -4/Extension | Rescued a captive Derelict 58301 | -4/Extension | Rescued a captive Derelict 58386 | -4/Extension | Rescued a captive Derelict 58387 | -4/Extension | Rescued a captive Derelict 58417 | -4/Extension | Rescued A7 58744 | -4/Extension | Build established: Scavenger-Golem 58965 | -4/Extension | Rescued a captive Derelict 59000 | -4/Extension | Discovered new exit (range 10) 59002 | -4/Extension | Discovered new exit (range 6) 59057 | -4/Extension | Entered Cetus 59057 | -4/Cetus | Accompanied by 2 allies (A7) 59062 | -4/Cetus | Acquired a Cetus Manufacturing Module code from A7 59083 | -4/Cetus | Spotted Cetus Guard 59083 | -4/Cetus | Spotted Cetus Guard 59085 | -4/Cetus | Destroyed Cetus Guard 59085 | -4/Cetus | Spotted Cetus Guard 59098 | -4/Cetus | Destroyed Cetus Guard 59101 | -4/Cetus | Destroyed Cetus Guard 59102 | -4/Cetus | Spotted Cetus Guard 59108 | -4/Cetus | Destroyed Cetus Guard 59249 | -4/Cetus | Started Cetus Manufacturing Module 59274 | -4/Cetus | Manufactured an Enhanced Grunt 59299 | -4/Cetus | Manufactured an Enhanced Grunt 59324 | -4/Cetus | Manufactured an Enhanced Grunt 59340 | -4/Cetus | Discovered new exit (range 15) 59349 | -4/Cetus | Manufactured an Enhanced Grunt 59374 | -4/Cetus | Manufactured an Enhanced Grunt 59392 | -4/Cetus | Entered Archives 59392 | -4/Archives | Accompanied by 5 allies (A7) 59467 | -4/Archives | Unable to access archive contents 59520 | -4/Archives | Discovered new exit (range 16) 59616 | -4/Archives | Discovered new exit (range 14) 59676 | -4/Archives | Unable to access archive contents 60138 | -4/Archives | Build established: Generator-Golem 60288 | -4/Archives | Discovered new exit (range 15) 60338 | -4/Archives | Entered Hub_04(d) 60338 | -4/Hub_04(d) | Accompanied by 4 allies 60776 | -4/Hub_04(d) | Network Hub disabled 60786 | -4/Hub_04(d) | Spotted Lightning 60805 | -4/Hub_04(d) | System corruption reached 10% 60805 | -4/Hub_04(d) | Destroyed Lightning 60808 | -4/Hub_04(d) | Spotted Lightning 60808 | -4/Hub_04(d) | Spotted Lightning 60824 | -4/Hub_04(d) | Destroyed Lightning 60837 | -4/Hub_04(d) | Destroyed Lightning 60875 | -4/Hub_04(d) | Found Prototype Device 60875 | -4/Hub_04(d) | Identified Exp. Phase Shifter 60880 | -4/Hub_04(d) | Found Prototype Device 60880 | -4/Hub_04(d) | Identified Exp. EM Disruption Field 60894 | -4/Hub_04(d) | Found Prototype Energy Cannon 60898 | -4/Hub_04(d) | Found Prototype Processor 60898 | -4/Hub_04(d) | Identified Exp. Targeting Computer 60908 | -4/Hub_04(d) | Found Exp. Targeting Computer 60931 | -4/Hub_04(d) | Network Hub disabled 60931 | -4/Hub_04(d) | Discovered new exit (range 6) 60975 | -4/Hub_04(d) | Found Active Sensor Suite 60976 | -4/Hub_04(d) | Identified exit to Research 60989 | -4/Hub_04(d) | Entered Research 60989 | -3/Research | Evolved 2 slots: Propulsion x1, Utility x1 60990 | -3/Research | Loaded intel: 83 trap records 61275 | -3/Research | Build established: Scavenger-Golem 61287 | -3/Research | First assault squad dispatched 61368 | -3/Research | Found Prototype Device 61369 | -3/Research | Identified System Purifier 61649 | -3/Research | Build established: Generator-Golem 61768 | -3/Research | Garrison activated, responded to threat 61810 | -3/Research | Lost 3 parts (1p1u1w) 62129 | -3/Research | Spotted B-86 Titan 63494 | -3/Research | Spotted B-86 Titan 63614 | -3/Research | Crushed by falling debris 63615 | -3/Research | System corruption reached 10% 63654 | -3/Research | Lost 3 parts (3u) 63828 | -3/Research | Found Prototype Protection 63828 | -3/Research | Identified Centrium Heavy Armor Plating 64151 | -3/Research | Discovered new exit (range 10) 64185 | -3/Research | Entered Armory 64221 | -3/Armory | Found Unknown Launcher 64222 | -3/Armory | Identified Fusion Bomb Launcher 64228 | -3/Armory | Found Fusion Bomb Launcher 64718 | -3/Armory | P-80 Master assimilated allied Champion 8a 64966 | -3/Armory | First assault squad dispatched 65046 | -3/Armory | Destroyed 13 combat bots 65183 | -3/Armory | Discovered new exit (range 3) 65187 | -3/Armory | Entered Lab 65187 | -3/Lab | Discovered new exit (range 9) 65212 | -3/Lab | Identified EMDS 65858 | -3/Lab | Entered Research 65858 | -2/Research | Evolved 2 slots: Utility x2 68094 | -2/Research | Destroyed 10 combat bots 68102 | -2/Research | Discovered new exit (range 12) 68164 | -2/Research | Found Corrupted Active Sensor Suite 68182 | -2/Research | Identified exit to Access 69108 | -2/Research | First assault squad dispatched 69378 | -2/Research | Destroyed 11 combat bots 69379 | -2/Research | Crushed by falling debris 69410 | -2/Research | Lost 3 parts (3u) 69614 | -2/Research | Found Prototype Device 69615 | -2/Research | Identified Beam Splitter 69666 | -2/Research | Garrison activated, responded to threat 69770 | -2/Research | Destroyed 9 combat bots 69812 | -2/Research | Lost 6 parts (1p2u3w) 70021 | -2/Research | Discovered exit to Access (range 11) 70048 | -2/Research | Entered Access 70048 | -1/Access | Evolved 2 slots: Utility x2 70073 | -1/Access | Lost 8 parts (3p2u3w) 70298 | -1/Access | First assault squad dispatched 70468 | -1/Access | Build established: Generator-Tank 70691 | -1/Access | Destroyed 10 combat bots 70973 | -1/Access | High security lockdown imminent 71005 | -1/Access | Destroyed Executioner 71053 | -1/Access | High security lockdown engaged 71060 | -1/Access | Spotted B-99 Colossus 71066 | -1/Access | Destroyed 7 combat bots 71087 | -1/Access | Released all parts (16) 71099 | -1/Access | Core integrity fell below 50% 71117 | -1/Access | Lost 6 parts (3p2u1w) 71125 | -1/Access | System corruption reached 10% 71145 | -1/Access | Core integrity fell below 20% 71177 | -1/Access | Destroyed by H-88 Terminator with KE Penetrator Last Messages --------------- 71131_ Slug penetrates Wall. 71132_ R-10 Processor collects Mic. Antimatter Reactor. 71133_ U-05 Engineer builds a Wall. 71135_ Slug penetrates Wall. 71136_ R-10 Processor collects Unknown Flight Unit. 71137_ Slammed into S-43 Plague. 71139_ System corrupted: Substantial component data lost. 71146_ Slug penetrates Wall. 71150_ RIF reveals location of hidden door. 71153_ Acquired Unknown Energy Gun. 71156_ 7L>TER>>QRFC2X3YOA5Q6XX LBFKN>U 44V 71158_ Acquired Imp. Fusion Compressor. 71159_ Identified Tesla Rifle. 71168_ Slug penetrates Wall. 71169_ P-80 Master resets S-43 Plague, system corruption cleaned. 71170_ Slug penetrates Wall. 71173_ ALERT: Assault forces dispatched. 71173_ Slug penetrates Wall. 71175_ Wall collapses. 71176_ Slug penetrates Wall. Map ----- +----------------------------------------------------+ | #?????????????????????????? | | % #?????????????????????????? | | #?????????????????????????? | | % #?????????????????????????? | | /## #?????????????????????????? | | # #?????????????????????????? | | [ # #?????????????????????????? | | # #?????????????????????????? | | # #?????????????????????????? | | # ###########???????????????? | | # # !! #???????????????? | | ! / # !! #???????????????? | | # # #???????????????? | | # # #???????????????? | | # # #???????????????? | | ### # #???????????????? | | ??# + #???????????????? | | ??+ # #???????????????? | | ??# ##+##################?????? | | ??# #?# # ! #?????? | | ??# ### [[ s #?????? | | ??# # [ # #?????? | | ??# Y h # #?????? | | ??# # h s !#?????? | | ??# # # #?????? | | ??# # # @#?????? | | ??+ + # +?????? | | ??##+############# #?????? | | ?????????????????##########?????? | | ????????????????????????????????? | | ????????????????????????????????? | | ????????????????????????????????? | | ????????????????????????????????? | | ????????????????????????????????? | | ????????????????????????????????? | | ????????????????????????????????? | | ????????????????????????????????? | | ????????????????????????????????? | | ????????????????????????????????? | | ????????????????????????????????? | | ????????????????????????????????? | | ????????????????????????????????? | | ????????????????????????????????? | | ????????????????????????????????? | | ????????????????????????????????? | | ????????????????????????????????? | | ????????????????????????????????? | | ????????????????????????????????? | | ????????????????????????????????? | | ????????????????????????????????? | +----------------------------------------------------+ Best States ------------- Heat Dissipation 104 Coolant Potential 100 Energy Generation 103 Energy Capacity 1950 Matter Stores 300 Matter Capacity 300 Sight Range 20 Robot Scan Range 20 Terrain Scan Range 18 Terrain Scan Density 210 Jamming Range 16 Cloak Strength 3 Power Amplification 30 EM Shielding 3 Corruption Containment 8 Corruption Block 15 Armor Coverage 3200 Resistance: KI 30 Resistance: TH 25 Resistance: EX 50 Resistance: EM 90 Resistance: I 15 Resistance: S 15 Resistance: P 15 Utility Shielding 66 Weapon Shielding 100 Weapon Cycling 15 Phase Shifting 15 Evasion (%) 55 Targeting Accuracy 24 Target Analysis 6 Recoil Reduction 3 Matter Filtering 30 Particle Charging 25 Salvage Targeting 5 Offensive Hacking 10 Relay Coupler Types 3 Relay Coupler Value 105 Item Schematics ----------------- Huge Storage Unit | -10/Materials | Hacked Structural Scanner | -9/Recycling | Hacked Seismic Detector | -9/Recycling | Hacked VSS Leg | -9/Recycling | Hacked Robot Schematics ------------------ None Fabricated ------------ Nothing Alien Tech Used ----------------- None Achievements -------------- Equal Opportunity Bot Ultimate Loadout Challenges ------------ None Game ------ Seed ImpactMissileActivator Manual? 0 Play Time 10:17:04 Cumulative 332.9 hours Start 2022.04.26 @ 01:34:20 End 2022.05.09 @ 22:18:37 Sessions 18 Manual Loads 0 Difficulty Rogue Special Mode None Game No. 318 Rogue 318 Adventurer 0 Explorer 0 Win Type - Total 4 Types 4/0/0/0/0/0/0/0/0 Lore% 63 Gallery% 78 Achievement% 64 Wizard Run 0 Options --------- ASCII 0 Keyboard 0 Movement Numpad Keybinds 0 Fullscreen 2 Font 24/Terminus Map View 76x50 Tactical HUD 1 Map Filters NONE Filters NONE Steam 1 RUN: 82e5cb9e-27ba-4b9f-9da8-04e71d6d5085